{"text_format":"1","workbook":"xlsx","n_sheets":3,"sheets":["Avaliação de Riscos","Síntese de Resultados","Relatório com Soluções"],"not_rendered":{"charts":1,"images":2,"macros":1,"external_links":0,"defined_names":1,"comments":0,"pivot_tables":0},"unopened":[],"bounds":{"document_bytes":16777216,"sheet_cells":100000,"rows_first":2000,"rows_last":500,"rows_between":2000,"halvings":0,"cell_chars":16384,"cell_head_chars":4096},"cells_cut":0,"cells_raw":0,"read":"whole","date_system":"1900"}

{"sheet":"Avaliação de Riscos","index":0,"n_rows":142,"n_cols":29,"rows_kept":142,"cut":false,"hidden":false,"merged":[[4,0,4,6],[74,1,74,6],[36,1,36,6],[4,10,4,19],[6,13,6,15],[4,20,4,29],[47,1,47,6],[26,1,26,6],[27,1,27,6],[31,1,31,6],[32,1,32,6],[33,1,33,6],[42,1,42,6],[17,1,17,6],[18,1,18,6],[22,1,22,6],[23,1,23,6],[24,1,24,6],[5,6,5,9],[24,21,24,23],[25,21,25,23],[13,21,13,23],[17,21,17,23],[18,21,18,23],[22,21,22,23],[23,21,23,23],[8,21,8,23],[25,1,25,6],[8,1,8,6],[9,1,9,6],[10,1,10,6],[11,1,11,6],[12,1,12,6],[13,1,13,6],[9,21,9,23],[10,21,10,23],[11,21,11,23],[12,21,12,23],[108,0,108,6],[109,6,109,9],[81,1,81,6],[80,1,80,6],[39,6,39,9],[56,1,56,6],[57,1,57,6],[68,1,68,6],[69,1,69,6],[73,1,73,6],[87,1,87,6],[43,1,43,6],[75,0,75,6],[76,6,76,9],[86,1,86,6],[54,1,54,6],[91,1,91,6],[94,1,94,6],[130,1,130,6],[131,1,131,6],[132,1,132,6],[133,1,133,6],[134,1,134,6],[135,1,135,6],[136,1,136,6],[137,1,137,6],[26,21,26,23],[27,21,27,23],[31,21,31,23],[32,21,32,23],[33,21,33,23],[42,21,42,23],[43,21,43,23],[47,21,47,23],[112,1,112,6],[114,1,114,6],[28,21,28,23],[29,21,29,23],[30,21,30,23],[93,1,93,6],[92,1,92,6],[107,1,107,6],[57,21,57,23],[63,1,63,6],[64,1,64,6],[85,1,85,6],[79,1,79,6],[58,1,58,6],[96,1,96,6],[95,1,95,6],[101,1,101,6],[140,0,140,6],[140,7,140,9],[141,0,141,6],[141,7,141,9],[0,2,0,9],[2,2,2,9],[1,2,1,9],[125,1,125,6],[126,1,126,6],[113,1,113,6],[115,1,115,6],[119,1,119,6],[120,1,120,6],[124,1,124,6],[103,1,103,6],[100,1,100,6],[102,1,102,6],[55,1,55,6],[49,1,49,6],[53,1,53,6],[62,1,62,6],[37,1,37,6],[48,1,48,6],[38,0,38,6]]}
[null,null,"Esta ferramenta tem por objetivo auxiliar os empregadores na avaliação dos principais riscos nas empresas de massas e molhos, para que de forma rápida e simples, possam ser adotadas soluções para o seu controlo. Para uma avaliação mais detalhada aconselha-se o preenchimento da ferramenta OiRA \"Produtos Hortofrutícolas\" em:"]
[null,null,"https://oiraproject.eu/pt/oira-tools"]
[null,null,"https://maisagro.pt/sst/ferramentas-computacionais-de-analise-de-perigos-e-riscos-em-pmes-do-setor-agroalimentar/"]
[]
["Produtos Hortofrutícolas - Massas e Molhos",null,null,null,null,null,null,"Sim","Não","N/A","Contas - Folha Oculta",null,null,null,null,null,null,null,null,null,"Contas - Gráfico"]
[null,null,null,null,null,null,"Nota: Coloque X na opção correta.",null,null,null,null,null,null,null,null,null,null,null,null,null,"Pontuação",null,null,null,null,"Riscos","Data","Valores"]
["1. GESTÃO DA SEGURANÇA E SAÚDE NO TRABALHO",null,null,null,null,null,null,null,null,null,"Pontuação %",null,null,"Pontuação",null,null,"cond","sim","não","N/A"]
[]
["1.1","A empresa tem os serviços de segurança e saúde no trabalho organizados.",null,null,null,null,null,null,null,null,null,null,null,null,null,null,{"$f":"SUM(R9:T9)","v":0},{"$f":"IF(H9=ISBLANK(0),0,1)","v":0},{"$f":"IF(I9=ISBLANK(0),0,1)","v":0},{"$f":"IF(J9=ISBLANK(0),0,1)","v":0},{"$f":"#REF!","v":{"$error":"#REF!"}},{"$f":"Z9","v":"1. GESTÃO DA SEGURANÇA E SAÚDE NO TRABALHO"},null,null,null,{"$f":"A7","v":"1. GESTÃO DA SEGURANÇA E SAÚDE NO TRABALHO"},{"$f":"IF(V9=\"\",\"\",V9)","v":"1. GESTÃO DA SEGURANÇA E SAÚDE NO TRABALHO"},{"$f":"IF(R16=\"\",\"\",R16)","v":{"$error":"#DIV/0!"}},1]
["1.2","Foram realizadas avaliações de riscos antes de se adotar as medidas de prevenção.",null,null,null,null,null,null,null,null,"N° Valido","Pontuação",null,"sim",{"$f":"#REF!*L11","v":{"$error":"#REF!"}},null,{"$f":"SUM(R10:T10)","v":0},{"$f":"IF(H10=ISBLANK(0),0,1)","v":0},{"$f":"IF(I10=ISBLANK(0),0,1)","v":0},0,null,"2. INSTALAÇÕES",null,null,null,{"$f":"A16","v":"2. INSTALAÇÕES"},{"$f":"IF(V10=\"\",\"\",V10)","v":"2. INSTALAÇÕES"},{"$f":"IF(R21=\"\",\"\",R21)","v":{"$error":"#DIV/0!"}},2]
["1.3","Os trabalhadores são consultados, por escrito, pelo menos uma vez por ano em matérias de Segurança e Saúde no Trabalho.",null,null,null,null,null,null,null,null,1,{"$f":"K11/6","v":0.16666666666666666},null,null,null,null,0,0,0,0,null,"3. AMBIENTE TÉRMICO, ILUMINAÇÃO, RUÍDO E PRODUTOS QUÍMICOS",null,null,null,{"$f":"A21","v":"3. AMBIENTE TÉRMICO, ILUMINAÇÃO, RUÍDO E PRODUTOS QUÍMICOS"},{"$f":"IF(V11=\"\",\"\",V11)","v":"3. AMBIENTE TÉRMICO, ILUMINAÇÃO, RUÍDO E PRODUTOS QUÍMICOS"},{"$f":"IF(R30=\"\",\"\",R30)","v":{"$error":"#DIV/0!"}},3]
["1.4","Os trabalhadores dispõem de formação e informação atualizada sobre Segurança e Saúde no Trabalho.",null,null,null,null,null,null,null,null,null,null,null,null,null,null,0,0,0,0,null,"4. RISCOS PSICOSSOCIAIS E STRESSE",null,null,null,{"$f":"A30","v":"4. RISCOS PSICOSSOCIAIS E STRESSE"},{"$f":"IF(V12=\"\",\"\",V12)","v":"4. RISCOS PSICOSSOCIAIS E STRESSE"},{"$f":"IF(R35=\"\",\"\",R35)","v":{"$error":"#DIV/0!"}},4]
["1.5","É realizada a vigilância da saúde dos trabalhadores.",null,null,null,null,null,null,null,null,null,null,null,null,null,null,0,{"$f":"IF(H13=ISBLANK(0),0,1)","v":0},0,0,null,"5. RISCOS ERGONÓMICOS",null,null,null,{"$f":"A41","v":"5. RISCOS ERGONÓMICOS"},"5. RISCOS ERGONÓMICOS",{"$f":"IF(R46=\"\",\"\",R46)","v":{"$error":"#DIV/0!"}},5]
["1.6","Anualmente é preenchido e enviado o relatório único.",null,null,null,null,null,null,null,null,null,null,null,null,null,null,0,0,0,0,null,"6. RISCOS ELÉTRICOS",null,null,null,{"$f":"A46","v":"6. RISCOS ELÉTRICOS"},"6. RISCOS ELÉTRICOS",{"$f":"IF(R52=\"\",\"\",R52)","v":{"$error":"#DIV/0!"}},6]
[]
["2. INSTALAÇÕES",null,null,null,null,null,null,null,null,null,null,null,null,null,null,null,{"$f":"SUM(R9:S14)","v":0},{"$f":"(R9+R10+R11+R12+R13+R14)/$Q$16","v":{"$error":"#DIV/0!"}},{"$f":"(S9+S10+S11+S12+S13+S14)/$Q$16","v":{"$error":"#DIV/0!"}}]
[]
["2.1","Os pavimentos dos locais de trabalho são fixos, estáveis, antiderrapantes, sem inclinações perigosas, saliências e cavidades.",null,null,null,null,null,null,null,null,null,null,null,null,null,null,{"$f":"SUM(R18:T18)","v":0},0,0,0,null,{"$f":"Z18","v":"7. GESTÃO DA SEGURANÇA DE MÁQUINAS E EQUIPAMENTOS DE TRABALHO"},null,null,null,{"$f":"A52","v":"7. GESTÃO DA SEGURANÇA DE MÁQUINAS E EQUIPAMENTOS DE TRABALHO"},"7. GESTÃO DA SEGURANÇA DE MÁQUINAS E EQUIPAMENTOS DE TRABALHO",{"$f":"IF(R61=\"\",\"\",R61)","v":{"$error":"#DIV/0!"}},7]
["2.2","Os locais de trabalho estão arrumados e bem organizados.",null,null,null,null,null,null,null,null,null,null,null,null,null,null,{"$f":"SUM(R19:T19)","v":0},0,0,0,null,{"$f":"Z19","v":"8. EQUIPAMENTOS DE PROTEÇÃO INDIVIDUAL (EPI)"},null,null,null,{"$f":"A61","v":"8. EQUIPAMENTOS DE PROTEÇÃO INDIVIDUAL (EPI)"},"8. EQUIPAMENTOS DE PROTEÇÃO INDIVIDUAL (EPI)",{"$f":"IF(R67=\"\",\"\",R67)","v":{"$error":"#DIV/0!"}},8]
[]
["3. AMBIENTE TÉRMICO, ILUMINAÇÃO, RUÍDO E PRODUTOS QUÍMICOS",null,null,null,null,null,null,null,null,null,null,null,null,null,null,null,{"$f":"SUM(R18:S19)","v":0},{"$f":"(R18+R19)/$Q$21","v":{"$error":"#DIV/0!"}},{"$f":"(S18+S19)/$Q$21","v":{"$error":"#DIV/0!"}}]
[null,null,null,null,null,null,null,null,null,null,null,null,null,null,null,null,null,8]
["3.1","A temperatura e a humidade do ar dos postos de trabalho são adequadas à saúde dos trabalhadores.",null,null,null,null,null,null,null,null,null,null,null,"sim","não",null,{"$f":"SUM(R23:T23)","v":0},0,0,0,null,{"$f":"Z23","v":"9. RECIPIENTES SOB PRESSÃO"},null,null,null,{"$f":"A67","v":"9. RECIPIENTES SOB PRESSÃO"},{"$f":"IF(V23=\"\",\"\",V23)","v":"9. RECIPIENTES SOB PRESSÃO"},{"$f":"IF(R72=\"\",\"\",R72)","v":{"$error":"#DIV/0!"}},9]
["3.2","A iluminação nos locais de trabalho é adequada aos requisitos visuais das tarefas que são executadas.",null,null,null,null,null,null,null,null,null,null,null,null,null,null,{"$f":"SUM(R24:T24)","v":0},0,0,0,null,"10. RECEÇÃO E ARMAZENAMENTO DE MATÉRIAS PRIMAS - ESTANTES E PRATELEIRAS",null,null,null,{"$f":"A78","v":"10. RECEÇÃO E ARMAZENAMENTO DE MATÉRIAS PRIMAS - ESTANTES E PRATELEIRAS"},{"$f":"IF(V24=\"\",\"\",V24)","v":"10. RECEÇÃO E ARMAZENAMENTO DE MATÉRIAS PRIMAS - ESTANTES E PRATELEIRAS"},{"$f":"IF(R84=\"\",\"\",R84)","v":{"$error":"#DIV/0!"}},10]
["3.3","A aquisição dos protetores auditivos teve em atenção as medições de ruído efetuadas.",null,null,null,null,null,null,null,null,null,null,null,null,null,null,0,0,0,0,null,"11. RECEÇÃO E ARMAZENAMENTO DE MATÉRIAS PRIMAS - CÂMARAS DE FRIO",null,null,null,{"$f":"A84","v":"11. RECEÇÃO E ARMAZENAMENTO DE MATÉRIAS PRIMAS - CÂMARAS DE FRIO"},"11. RECEÇÃO E ARMAZENAMENTO DE MATÉRIAS PRIMAS - CÂMARAS DE FRIO",{"$f":"IF(R90=\"\",\"\",R90)","v":{"$error":"#DIV/0!"}},11]
["3.4","Nos locais de trabalho onde os trabalhadores possam estar expostos a níveis de ruído acima dos valores de ação superior (85 dB(A)), o empregador estabelece e aplica um programa de medidas técnicas e organizacionais.",null,null,null,null,null,null,null,null,null,null,null,null,null,null,0,0,0,0,null,"12. PREPARAÇÃO DOS INGREDIENTES",null,null,null,{"$f":"A90","v":"12. PREPARAÇÃO DOS INGREDIENTES"},"12. PREPARAÇÃO DOS INGREDIENTES",{"$f":"IF(R99=\"\",\"\",R99)","v":{"$error":"#DIV/0!"}},12]
["3.5","Existem fichas de dados de segurança dos produtos químicos perigosos utilizados na empresa.",null,null,null,null,null,null,null,null,null,null,null,null,null,null,0,0,0,0,null,"13.  CONFEÇÃO DAS MASSAS E MOLHOS",null,null,null,{"$f":"A99","v":"13.  CONFEÇÃO DAS MASSAS E MOLHOS"},"13.  CONFEÇÃO DAS MASSAS E MOLHOS",{"$f":"IF(R111=\"\",\"\",R111)","v":{"$error":"#DIV/0!"}}]
["3.6","Todas as embalagens de produtos químicos estão rotuladas.",null,null,null,null,null,null,null,null,null,null,null,null,null,null,{"$f":"SUM(R28:T28)","v":0},0,0,0,null,"14. EMBALAMENTO PRIMÁRIO",null,null,null,{"$f":"A111","v":"14. EMBALAMENTO PRIMÁRIO"},"14. EMBALAMENTO PRIMÁRIO",{"$f":"IF(R118=\"\",\"\",R118)","v":{"$error":"#DIV/0!"}}]
[null,null,null,null,null,null,null,null,null,null,null,null,null,null,null,null,null,null,null,null,null,{"$f":"Z29","v":"15. EMBALAMENTO SECUNDÁRIO"},null,null,null,{"$f":"A118","v":"15. EMBALAMENTO SECUNDÁRIO"},"15. EMBALAMENTO SECUNDÁRIO",{"$f":"IF(R123=\"\",\"\",R123)","v":{"$error":"#DIV/0!"}}]
["4. RISCOS PSICOSSOCIAIS E STRESSE",null,null,null,null,null,null,null,null,null,null,null,null,null,null,null,{"$f":"SUM(R23:S28)","v":0},{"$f":"SUM(R23:R28)/$Q$30","v":{"$error":"#DIV/0!"}},{"$f":"SUM(S23:S28)/$Q$30","v":{"$error":"#DIV/0!"}},null,null,"15. EMBALAMENTO SECUNDÁRIO",null,null,null,{"$f":"A118","v":"15. EMBALAMENTO SECUNDÁRIO"},"15. EMBALAMENTO SECUNDÁRIO",{"$f":"IF(R123=\"\",\"\",R123)","v":{"$error":"#DIV/0!"}}]
[null,null,null,null,null,null,null,null,null,null,null,null,null,null,null,null,null,null,null,null,null,"16. ARMAZENAMENTO DE PRODUTO ACABADO",null,null,null,{"$f":"A123","v":"16. ARMAZENAMENTO DE PRODUTO ACABADO"},"16. ARMAZENAMENTO DE PRODUTO ACABADO",{"$f":"IF(R129=\"\",\"\",R129)","v":{"$error":"#DIV/0!"}}]
["4.1","Os trabalhadores não apresentam queixas da existência de violência verbal ou física.",null,null,null,null,null,null,null,null,null,null,null,null,null,null,{"$f":"SUM(R32:T32)","v":0},0,0,0,null,"17. EMERGÊNCIAS",null,null,null,{"$f":"A129","v":"17. EMERGÊNCIAS"},"17. EMERGÊNCIAS",{"$f":"IF(R140=\"\",\"\",R140)","v":{"$error":"#DIV/0!"}}]
["4.2","Existe um procedimento para registar os comportamentos abusivos de terceiros.",null,null,null,null,null,null,null,null,null,null,null,null,null,null,{"$f":"SUM(R33:T33)","v":0},0,0,0,null,null,null,null,{"$f":"IF(U33=\"\",\"\",U33)","v":""},null,"",{"$f":"IF(U33=\"\",\"\",W33)","v":""}]
["4.3","Os trabalhadores conhecem as suas tarefas e dispõem de todas as condições para as efetuar corretamente (competências, instruções, materiais, equipamentos, etc.).",null,null,null,null,null,null,null,null,null,null,null,null,null,null,0,0,0,0,null,null,null,null,"",null,"",""]
[null,null,null,null,null,null,null,null,null,null,null,null,null,null,null,null,{"$f":"SUM(R32:S34)","v":0},{"$f":"SUM(R32:R34)/$Q$35","v":{"$error":"#DIV/0!"}},{"$f":"SUM(S32:S34)/$Q$35","v":{"$error":"#DIV/0!"}}]
[]
[]
[]
["Produtos Hortofrutícolas - Massas e Molhos",null,null,null,null,null,null,"Sim","Não","N/A"]
[null,null,null,null,null,null,"Nota: Coloque X na opção correta."]
["5. RISCOS ERGONÓMICOS"]
[]
["5.1","Sempre que sejam movimentadas manualmente cargas pesadas ou volumosas são adotadas medidas que evitem o risco de lesões dorso lombares.",null,null,null,null,null,null,null,null,null,null,null,null,null,null,{"$f":"SUM(R43:T43)","v":0},0,0,0,null,null,null,null,"",null,"",""]
["5.2","O posto de trabalho está bem adaptado para o desenvolvimento de atividades numa posição em pé.",null,null,null,null,null,null,null,null,null,null,null,null,null,null,{"$f":"SUM(R44:T44)","v":0},{"$f":"IF(H44=ISBLANK(0),0,1)","v":0},{"$f":"IF(I44=ISBLANK(0),0,1)","v":0},{"$f":"IF(J44=ISBLANK(0),0,1)","v":0},null,null,null,null,{"$f":"IF(U44=\"\",\"\",U44)","v":""}]
[]
["6. RISCOS ELÉTRICOS",null,null,null,null,null,null,null,null,null,null,null,null,null,null,null,{"$f":"SUM(R43:S44)","v":0},{"$f":"SUM(R43:R44)/$Q$46","v":{"$error":"#DIV/0!"}},{"$f":"SUM(S43:S44)/$Q$46","v":{"$error":"#DIV/0!"}}]
[]
["6.1","O número e disposição das tomadas de eletricidade são suficientes, não existindo necessidade de recorrer sistematicamente e de forma contínua à utilização de extensões e “triplas”.",null,null,null,null,null,null,null,null,null,null,null,null,null,null,{"$f":"SUM(R48:T48)","v":0},0,0,0,null,null,null,null,"",null,"",""]
["6.2","Os cabos elétricos de alimentação de máquinas ou equipamentos, bem como as extensões elétricas são mantidos em bom estado.",null,null,null,null,null,null,null,null,null,null,null,null,null,null,{"$f":"SUM(R49:T49)","v":0},{"$f":"IF(H49=ISBLANK(0),0,1)","v":0},{"$f":"IF(I49=ISBLANK(0),0,1)","v":0},{"$f":"IF(J49=ISBLANK(0),0,1)","v":0},null,null,{"$f":"U49","v":0}]
["6.3","Os trabalhadores receberam informação/ formação relativa a riscos elétricos.",null,null,null,null,null,null,null,null,null,null,null,null,null,null,0,{"$f":"IF(H50=ISBLANK(0),0,1)","v":0},{"$f":"IF(I50=ISBLANK(0),0,1)","v":0},{"$f":"IF(J50=ISBLANK(0),0,1)","v":0},null,null,{"$f":"U50","v":0}]
[]
["7. GESTÃO DA SEGURANÇA DE MÁQUINAS E EQUIPAMENTOS DE TRABALHO",null,null,null,null,null,null,null,null,null,null,null,null,null,null,null,{"$f":"SUM(R48:S50)","v":0},{"$f":"SUM(R48:R50)/$Q$52","v":{"$error":"#DIV/0!"}},{"$f":"SUM(S48:S50)/$Q$52","v":{"$error":"#DIV/0!"}}]
[]
["7.1","Existe um inventário de todas as máquinas.",null,null,null,null,null,null,null,null,null,null,null,null,null,null,{"$f":"SUM(R54:T54)","v":0},{"$f":"IF(H54=ISBLANK(0),0,1)","v":0},0,0,null,null,{"$f":"U54","v":0}]
["7.2","Existe um relatório, para cada máquina, relativo à sua entrada em funcionamento.",null,null,null,null,null,null,null,null,null,null,null,null,null,null,{"$f":"SUM(R55:T55)","v":0},0,0,0,null,null,{"$f":"U55","v":0}]
["7.3","É feita regularmente uma verificação do estado de segurança às máquinas e equipamentos de trabalho.",null,null,null,null,null,null,null,null,null,null,null,null,null,null,0,0,0,0,null,null,{"$f":"U56","v":0}]
["7.4","As diferentes funções de comando, de cada máquina, são claras e não existe a possibilidade de ocorrerem comandos involuntários.",null,null,null,null,null,null,null,null,null,null,null,null,null,null,0,{"$f":"IF(H57=ISBLANK(0),0,1)","v":0},{"$f":"IF(I57=ISBLANK(0),0,1)","v":0},{"$f":"IF(J57=ISBLANK(0),0,1)","v":0},null,null,{"$f":"U57","v":0}]
["7.5","As máquinas estão equipadas, quando necessário, com mecanismos de segurança e proteções (por exemplo para proteção das partes móveis ou para combater o ruído), fixos e que não podem ser retirados.",null,null,null,null,null,null,null,null,null,null,null,null,null,null,0,{"$f":"IF(H58=ISBLANK(0),0,1)","v":0},0,0,null,null,0]
["7.6","Existem manuais de instrução, em português, dos equipamentos de trabalho.",null,null,null,null,null,null,null,null,null,null,null,null,null,null,0,{"$f":"IF(H59=ISBLANK(0),0,1)","v":0},{"$f":"IF(I59=ISBLANK(0),0,1)","v":0},{"$f":"IF(J59=ISBLANK(0),0,1)","v":0},null,null,{"$f":"U59","v":0}]
[]
["8. EQUIPAMENTOS DE PROTEÇÃO INDIVIDUAL (EPI)",null,null,null,null,null,null,null,null,null,null,null,null,null,null,null,{"$f":"SUM(R54:S59)","v":0},{"$f":"SUM(R54:R59)/$Q$61","v":{"$error":"#DIV/0!"}},{"$f":"SUM(S54:S59)/$Q$61","v":{"$error":"#DIV/0!"}}]
[]
["8.1","Os equipamentos de proteção individual foram adquiridos tendo em conta a avaliação de riscos efetuada na empresa.",null,null,null,null,null,null,null,null,null,null,null,null,null,null,{"$f":"SUM(R63:T63)","v":0},{"$f":"IF(H63=ISBLANK(0),0,1)","v":0},{"$f":"IF(I63=ISBLANK(0),0,1)","v":0},{"$f":"IF(J63=ISBLANK(0),0,1)","v":0},null,null,{"$f":"U63","v":0}]
["8.2","Todos os equipamentos de proteção individual têm marcação CE.",null,null,null,null,null,null,null,null,null,null,null,null,null,null,{"$f":"SUM(R64:T64)","v":0},{"$f":"IF(H64=ISBLANK(0),0,1)","v":0},{"$f":"IF(I64=ISBLANK(0),0,1)","v":0},{"$f":"IF(J64=ISBLANK(0),0,1)","v":0},null,null,{"$f":"U64","v":0}]
["8.3","Sempre que necessário os trabalhadores utilizam os equipamentos de proteção individual.",null,null,null,null,null,null,null,null,null,null,null,null,null,null,0,{"$f":"IF(H65=ISBLANK(0),0,1)","v":0},0,0,null,null,0]
[]
["9. RECIPIENTES SOB PRESSÃO",null,null,null,null,null,null,null,null,null,null,null,null,null,null,null,{"$f":"SUM(R63:S65)","v":0},{"$f":"SUM(R63:R65)/$Q$67","v":{"$error":"#DIV/0!"}},{"$f":"SUM(S63:S65)/$Q$67","v":{"$error":"#DIV/0!"}}]
[]
["9.1","As garrafas de gás estão armazenadas corretamente.",null,null,null,null,null,null,null,null,null,null,null,null,null,null,{"$f":"SUM(R69:T69)","v":0},{"$f":"IF(H69=ISBLANK(0),0,1)","v":0},0,0,null,null,{"$f":"U69","v":0}]
["9.2","As garrafas de gás são usadas em condições de segurança.",null,null,null,null,null,null,null,null,null,null,null,null,null,null,{"$f":"SUM(R70:T70)","v":0},0,0,0,null,null,{"$f":"U70","v":0}]
[]
[null,null,null,null,null,null,null,null,null,null,null,null,null,null,null,null,{"$f":"SUM(R69:S70)","v":0},{"$f":"SUM(R69:R70)/$Q$72","v":{"$error":"#DIV/0!"}},{"$f":"SUM(S69:S70)/$Q$72","v":{"$error":"#DIV/0!"}}]
[]
[null,null,null,null,null,null,null,null,null,null,null,null,null,null,null,null,null,null,null,null,null,null,null,null,""]
[null,null,null,null,null,null,null,null,null,null,null,null,null,null,null,null,null,null,null,null,null,null,{"$f":"U75","v":0}]
["Produtos Hortofrutícolas - Massas e Molhos",null,null,null,null,null,null,"Sim","Não","N/A",null,null,2]
[null,null,null,null,null,null,"Nota: Coloque X na opção correta."]
["10. RECEÇÃO E ARMAZENAMENTO DE MATÉRIAS PRIMAS - ESTANTES E PRATELEIRAS"]
[]
["10.1","As estruturas de armazenagem (pilares/estantes/prateleiras) são adequadas à carga a armazenar.",null,null,null,null,null,null,null,null,null,null,null,null,null,null,{"$f":"SUM(R80:T80)","v":0},{"$f":"IF(H80=ISBLANK(0),0,1)","v":0},{"$f":"IF(I80=ISBLANK(0),0,1)","v":0},{"$f":"IF(J80=ISBLANK(0),0,1)","v":0},null,null,{"$f":"U80","v":0}]
["10.2","Os trabalhos efetuados sobre escadas/escadotes realizam-se em condições de segurança.",null,null,null,null,null,null,null,null,null,null,null,null,null,null,{"$f":"SUM(R81:T81)","v":0},0,0,0,null,null,0]
["10.3","Os trabalhadores possuem informação e formação acerca das posturas corretas para levantar e movimentar cargas.",null,null,null,null,null,null,null,null,null,null,null,null,null,null,0,0,{"$f":"IF(I82=ISBLANK(0),0,1)","v":0},{"$f":"IF(J82=ISBLANK(0),0,1)","v":0},null,null,{"$f":"U82","v":0}]
[]
["11. RECEÇÃO E ARMAZENAMENTO DE MATÉRIAS PRIMAS - CÂMARAS DE FRIO",null,null,null,null,null,null,null,null,null,null,null,null,null,null,null,{"$f":"SUM(R80:S82)","v":0},{"$f":"SUM(R80:R82)/$Q$84","v":{"$error":"#DIV/0!"}},{"$f":"SUM(S80:S82)/$Q$84","v":{"$error":"#DIV/0!"}}]
[]
["11.1","A duração da exposição nas câmaras de conservação (frio positivo e/ou negativo) é limitada na medida do possível.",null,null,null,null,null,null,null,null,null,null,null,null,null,null,{"$f":"SUM(R86:T86)","v":0},{"$f":"IF(H86=ISBLANK(0),0,1)","v":0},{"$f":"IF(I86=ISBLANK(0),0,1)","v":0},{"$f":"IF(J86=ISBLANK(0),0,1)","v":0},null,null,{"$f":"U86","v":0}]
["11.2","Quando trabalham nas câmaras de conservação (frio positivo e/ou negativo), os trabalhadores têm ao seu dispor coletes de proteção contra o frio.",null,null,null,null,null,null,null,null,null,null,null,null,null,null,{"$f":"SUM(R87:T87)","v":0},{"$f":"IF(H87=ISBLANK(0),0,1)","v":0},{"$f":"IF(I87=ISBLANK(0),0,1)","v":0},{"$f":"IF(J87=ISBLANK(0),0,1)","v":0},null,null,{"$f":"U87","v":0}]
["11.3","As portas das câmaras de conservação (frio positivo e/ou negativo) dispõem de abertura fácil pelo exterior e pelo interior.",null,null,null,null,null,null,null,null,null,null,2,null,null,null,0,{"$f":"IF(H88=ISBLANK(0),0,1)","v":0},0,0,null,null,{"$f":"U88","v":0}]
[]
["12. PREPARAÇÃO DOS INGREDIENTES",null,null,null,null,null,null,null,null,null,null,null,null,null,null,null,{"$f":"SUM(R86:S88)","v":0},{"$f":"SUM(R86:R88)/$Q$90","v":{"$error":"#DIV/0!"}},{"$f":"SUM(S86:S88)/$Q$90","v":{"$error":"#DIV/0!"}}]
[]
["12.1","O piso da área de fabrico é mantido limpo e seco.",null,null,null,null,null,null,null,null,null,null,null,null,null,null,{"$f":"SUM(R92:T92)","v":0},{"$f":"IF(H92=ISBLANK(0),0,1)","v":0},{"$f":"IF(I92=ISBLANK(0),0,1)","v":0},{"$f":"IF(J92=ISBLANK(0),0,1)","v":0},null,null,{"$f":"U92","v":0}]
["12.2","A altura dos planos de trabalho é adequada aos trabalhadores.",null,null,null,null,null,null,null,null,null,null,null,null,null,null,{"$f":"SUM(R93:T93)","v":0},0,0,0,null,null,0]
["12.3","As prateleiras, mesas, balcões e bancadas da área de preparação dos ingredientes são em material liso, resistente, lavável e impermeável.",null,null,null,null,null,null,null,null,null,null,null,null,null,null,0,0,{"$f":"IF(I94=ISBLANK(0),0,1)","v":0},{"$f":"IF(J94=ISBLANK(0),0,1)","v":0},null,null,{"$f":"U94","v":0}]
["12.4","Existe espaço suficiente na área de preparação dos ingredientes, de forma a que os trabalhadores possam desenvolver o seu trabalho sem risco.",null,null,null,null,null,null,null,null,null,null,null,null,null,null,0,0,0,0,null,null,0]
["12.5","Os trabalhadores têm conhecimento dos riscos existentes ao utilizarem ferramentas cortantes, nas operações de preparação dos ingredientes, bem como das regras para o seu uso seguro.",null,null,null,null,null,null,null,null,null,null,null,null,null,null,{"$f":"SUM(R96:T96)","v":0},{"$f":"IF(H96=ISBLANK(0),0,1)","v":0},{"$f":"IF(I96=ISBLANK(0),0,1)","v":0},{"$f":"IF(J96=ISBLANK(0),0,1)","v":0},null,null,{"$f":"U96","v":0}]
["12.6","As operações de corte são efetuadas em superfícies estáveis.",null,null,null,null,null,null,null,null,null,null,2,null,null,null,{"$f":"SUM(R97:T97)","v":0},0,0,0,null,null,0]
[]
["13.  CONFEÇÃO DAS MASSAS E MOLHOS",null,null,null,null,null,null,null,null,null,null,null,null,null,null,null,{"$f":"SUM(R92:S97)","v":0},{"$f":"SUM(R92:R97)/$Q$99","v":{"$error":"#DIV/0!"}},{"$f":"SUM(S92:S97)/$Q$99","v":{"$error":"#DIV/0!"}}]
[]
["13.1","Os recipientes/equipamentos onde são confecionados os molhos possuem tampas/sistemas de fecho adequados.",null,null,null,null,null,null,null,null,null,null,null,null,null,null,{"$f":"SUM(R101:T101)","v":0},{"$f":"IF(H101=ISBLANK(0),0,1)","v":0},{"$f":"IF(I101=ISBLANK(0),0,1)","v":0},{"$f":"IF(J101=ISBLANK(0),0,1)","v":0},null,null,{"$f":"U101","v":0}]
["13.2","Os recipientes que contêm os molhos ainda quentes são transportados com segurança.",null,null,null,null,null,null,null,null,null,null,null,null,null,null,{"$f":"SUM(R102:T102)","v":0},{"$f":"IF(H102=ISBLANK(0),0,1)","v":0},{"$f":"IF(I102=ISBLANK(0),0,1)","v":0},{"$f":"IF(J102=ISBLANK(0),0,1)","v":0},null,null,{"$f":"U102","v":0}]
["13.3","Os trabalhadores usam equipamento de proteção em contato com materiais ou superfícies quentes.",null,null,null,null,null,null,null,null,null,null,null,null,null,null,{"$f":"SUM(R103:T103)","v":0},{"$f":"IF(H103=ISBLANK(0),0,1)","v":0},0,0,null,null,0]
["13.4","A ventilação da área onde se confecionam os molhos é a adequada.",null,null,null,null,null,null,null,null,null,null,2,null,null,null,0,{"$f":"IF(H104=ISBLANK(0),0,1)","v":0},0,0,null,null,0]
[]
[]
[]
[null,null,null,null,null,null,null,null,null,null,null,null,null,null,null,null,null,null,null,null,null,null,{"$f":"U108","v":0}]
["Produtos Hortofrutícolas - Massas e Molhos",null,null,null,null,null,null,"Sim","Não","N/A",null,null,2]
[null,null,null,null,null,null,"Nota: Coloque X na opção correta."]
["14. EMBALAMENTO PRIMÁRIO",null,null,null,null,null,null,null,null,null,null,null,null,null,null,null,{"$f":"SUM(R101:S104)","v":0},{"$f":"SUM(R101:R104)/$Q$111","v":{"$error":"#DIV/0!"}},{"$f":"SUM(S101:S104)/$Q$111","v":{"$error":"#DIV/0!"}}]
[]
["14.1","A altura dos planos de trabalho é adequada aos trabalhadores.",null,null,null,null,null,null,null,null,null,null,null,null,null,null,{"$f":"SUM(R113:T113)","v":0},{"$f":"IF(H113=ISBLANK(0),0,1)","v":0},{"$f":"IF(I113=ISBLANK(0),0,1)","v":0},{"$f":"IF(J113=ISBLANK(0),0,1)","v":0},null,null,{"$f":"U113","v":0}]
["14.2","Os recipientes que contenham os molhos ainda quentes são transportados com segurança para a área de enchimento manual das embalagens.",null,null,null,null,null,null,null,null,null,null,null,null,null,null,{"$f":"SUM(R114:T114)","v":0},{"$f":"IF(H114=ISBLANK(0),0,1)","v":0},{"$f":"IF(I114=ISBLANK(0),0,1)","v":0},{"$f":"IF(J114=ISBLANK(0),0,1)","v":0},null,null,{"$f":"U114","v":0}]
["14.3","No enchimento das embalagens são adotados procedimentos seguros para evitar queimaduras devido ao contacto com vapores, líquidos e superfícies quentes.",null,null,null,null,null,null,null,null,null,null,null,null,null,null,0,{"$f":"IF(H115=ISBLANK(0),0,1)","v":0},0,0,null,null,0]
["14.4","A movimentação das massas e molhos embalados é efetuada sem risco para os trabalhadores.",null,null,null,null,null,null,null,null,null,null,2,null,null,null,0,{"$f":"IF(H116=ISBLANK(0),0,1)","v":0},0,0,null,null,0]
[]
["15. EMBALAMENTO SECUNDÁRIO",null,null,null,null,null,null,null,null,null,null,null,null,null,null,null,{"$f":"SUM(R113:S116)","v":0},{"$f":"SUM(R113:R117)/$Q$118","v":{"$error":"#DIV/0!"}},{"$f":"SUM(S113:S117)/$Q$118","v":{"$error":"#DIV/0!"}}]
[]
["15.1","A altura dos planos de trabalho é adequada aos trabalhadores. ",null,null,null,null,null,null,null,null,null,null,null,null,null,null,{"$f":"SUM(R120:T120)","v":0},{"$f":"IF(H120=ISBLANK(0),0,1)","v":0},{"$f":"IF(I120=ISBLANK(0),0,1)","v":0},{"$f":"IF(J120=ISBLANK(0),0,1)","v":0},null,null,{"$f":"U120","v":0}]
["15.2","As máquinas existentes têm acesso fácil. ",null,null,null,null,null,null,null,null,null,null,2,null,null,null,{"$f":"SUM(R121:T121)","v":0},{"$f":"IF(H121=ISBLANK(0),0,1)","v":0},0,0,null,null,0]
[]
["16. ARMAZENAMENTO DE PRODUTO ACABADO",null,null,null,null,null,null,null,null,null,null,null,null,null,null,null,{"$f":"SUM(R120:S121)","v":0},{"$f":"SUM(R120:R121)/$Q$123","v":{"$error":"#DIV/0!"}},{"$f":"SUM(S120:S121)/$Q$123","v":{"$error":"#DIV/0!"}}]
[]
["16.1","As estruturas de armazenagem (pilares/estantes/prateleiras) são adequadas à carga a armazenar.",null,null,null,null,null,null,null,null,null,null,null,null,null,null,{"$f":"SUM(R125:T125)","v":0},{"$f":"IF(H125=ISBLANK(0),0,1)","v":0},{"$f":"IF(I125=ISBLANK(0),0,1)","v":0},{"$f":"IF(J125=ISBLANK(0),0,1)","v":0},null,null,{"$f":"U125","v":0}]
["16.2","Os trabalhos efetuados sobre escadas/escadotes realizam-se em condições de segurança.",null,null,null,null,null,null,null,null,null,null,null,null,null,null,{"$f":"SUM(R126:T126)","v":0},{"$f":"IF(H126=ISBLANK(0),0,1)","v":0},0,0,null,null,0]
["16.3","Os trabalhadores possuem informação e formação acerca das posturas corretas para levantar e movimentar cargas.",null,null,null,null,null,null,null,null,null,null,2,null,null,null,0,{"$f":"IF(H127=ISBLANK(0),0,1)","v":0},0,0,null,null,0]
[]
["17. EMERGÊNCIAS",null,null,null,null,null,null,null,null,null,null,null,null,null,null,null,{"$f":"SUM(R125:S127)","v":0},{"$f":"SUM(R125:R127)/$Q$129","v":{"$error":"#DIV/0!"}},{"$f":"SUM(S125:S127)/$Q$129","v":{"$error":"#DIV/0!"}}]
[]
["17.1","Existe um plano de ação ou instruções para fazer face às situações de emergência.",null,null,null,null,null,null,null,null,null,null,null,null,null,null,{"$f":"SUM(R131:T131)","v":0},{"$f":"IF(H131=ISBLANK(0),0,1)","v":0},{"$f":"IF(I131=ISBLANK(0),0,1)","v":0},{"$f":"IF(J131=ISBLANK(0),0,1)","v":0},null,null,{"$f":"U131","v":0}]
["17.2","Está definida uma estrutura para fazer face às emergências na empresa.",null,null,null,null,null,null,null,null,null,null,null,null,null,null,{"$f":"SUM(R132:T132)","v":0},0,0,0,null,null,0]
["17.3","As saídas de emergência estão sinalizadas, desobstruídas e são de fácil acesso para o exterior.",null,null,null,null,null,null,null,null,null,null,null,null,null,null,0,0,0,0,null,null,0]
["17.4","Foram realizadas ações de formação sobre segurança contra incêndios, explosões e primeiros socorros.",null,null,null,null,null,null,null,null,null,null,null,null,null,null,0,0,0,0,null,null,0]
["17.5","São organizados periodicamente simulacros de evacuação.",null,null,null,null,null,null,null,null,null,null,null,null,null,null,0,0,0,0,null,null,0]
["17.6","Existem extintores em número suficiente e são adequados às classes de fogo existentes.",null,null,null,null,null,null,null,null,null,null,null,null,null,null,0,0,0,0,null,null,0]
["17.7","A iluminação de emergência está instalada em toda a empresa e é inspecionada pelo menos uma vez por ano.",null,null,null,null,null,null,null,null,null,null,null,null,null,null,0,0,0,0,null,null,0]
["17.8","Existe caixa de primeiros socorros com fácil acesso em caso de emergência.",null,null,null,null,null,null,null,null,null,null,2,null,null,null,0,0,0,0,null,null,0]
[]
[null,null,null,null,null,null,null,null,null,null,null,null,null,null,null,null,{"$f":"SUM(R131:S138)","v":0},{"$f":"SUM(R131:R138)/$Q$140","v":{"$error":"#DIV/0!"}},{"$f":"SUM(S131:S138)/$Q$140","v":{"$error":"#DIV/0!"}},null,null,null,{"$f":"U140","v":0}]
["Responsável pela avaliação:",null,null,null,null,null,null,"Data:"]
[null,null,null,null,null,null,null,{"$f":"TODAY()","v":"2018-09-08"}]

{"sheet":"Síntese de Resultados","index":1,"n_rows":31,"n_cols":17,"rows_kept":31,"cut":false,"hidden":false,"merged":[[2,0,2,13]]}
[]
[]
["AVALIAÇÃO GERAL DOS RISCOS - SÍNTESE GRÁFICA",null,null,null,null,null,null,null,null,null,null,null,null,null,{"$f":"'Avaliação de Riscos'!U6","v":"Pontuação"},null,{"$f":"'Avaliação de Riscos'!V6","v":0}]
[null,null,null,null,null,null,null,null,null,null,null,null,null,null,{"$f":"'Avaliação de Riscos'!U9","v":{"$error":"#REF!"}},null,{"$f":"'Avaliação de Riscos'!V9","v":"1. GESTÃO DA SEGURANÇA E SAÚDE NO TRABALHO"}]
[null,null,null,null,null,null,null,null,null,null,null,null,null,null,{"$f":"'Avaliação de Riscos'!U10","v":0},null,{"$f":"'Avaliação de Riscos'!V10","v":"2. INSTALAÇÕES"}]
[null,null,null,null,null,null,null,null,null,null,null,null,null,null,{"$f":"'Avaliação de Riscos'!U11","v":0},null,{"$f":"'Avaliação de Riscos'!V11","v":"3. AMBIENTE TÉRMICO, ILUMINAÇÃO, RUÍDO E PRODUTOS QUÍMICOS"}]
[null,null,null,null,null,null,null,null,null,null,null,null,null,null,{"$f":"'Avaliação de Riscos'!U12","v":0},null,{"$f":"'Avaliação de Riscos'!V12","v":"4. RISCOS PSICOSSOCIAIS E STRESSE"}]
[null,null,null,null,null,null,null,null,null,null,null,null,null,null,{"$f":"'Avaliação de Riscos'!U13","v":0},null,{"$f":"'Avaliação de Riscos'!V13","v":"5. RISCOS ERGONÓMICOS"}]
[null,null,null,null,null,null,null,null,null,null,null,null,null,null,{"$f":"'Avaliação de Riscos'!U14","v":0},null,{"$f":"'Avaliação de Riscos'!V14","v":"6. RISCOS ELÉTRICOS"}]
[null,null,null,null,null,null,null,null,null,null,null,null,null,null,{"$f":"'Avaliação de Riscos'!U18","v":0},null,{"$f":"'Avaliação de Riscos'!V18","v":"7. GESTÃO DA SEGURANÇA DE MÁQUINAS E EQUIPAMENTOS DE TRABALHO"}]
[null,null,null,null,null,null,null,null,null,null,null,null,null,null,{"$f":"'Avaliação de Riscos'!U19","v":0},null,{"$f":"'Avaliação de Riscos'!V19","v":"8. EQUIPAMENTOS DE PROTEÇÃO INDIVIDUAL (EPI)"}]
[null,null,null,null,null,null,null,null,null,null,null,null,null,null,{"$f":"'Avaliação de Riscos'!U23","v":0},null,{"$f":"'Avaliação de Riscos'!V23","v":"9. RECIPIENTES SOB PRESSÃO"}]
[null,null,null,null,null,null,null,null,null,null,null,null,null,null,{"$f":"'Avaliação de Riscos'!U24","v":0},null,{"$f":"'Avaliação de Riscos'!V24","v":"10. RECEÇÃO E ARMAZENAMENTO DE MATÉRIAS PRIMAS - ESTANTES E PRATELEIRAS"}]
[null,null,null,null,null,null,null,null,null,null,null,null,null,null,{"$f":"'Avaliação de Riscos'!U25","v":0},null,{"$f":"'Avaliação de Riscos'!V25","v":"11. RECEÇÃO E ARMAZENAMENTO DE MATÉRIAS PRIMAS - CÂMARAS DE FRIO"}]
[null,null,null,null,null,null,null,null,null,null,null,null,null,null,{"$f":"'Avaliação de Riscos'!U26","v":0},null,{"$f":"'Avaliação de Riscos'!V26","v":"12. PREPARAÇÃO DOS INGREDIENTES"}]
[null,null,null,null,null,null,null,null,null,null,null,null,null,null,{"$f":"'Avaliação de Riscos'!U27","v":0},null,{"$f":"'Avaliação de Riscos'!V27","v":"13.  CONFEÇÃO DAS MASSAS E MOLHOS"}]
[null,null,null,null,null,null,null,null,null,null,null,null,null,null,{"$f":"'Avaliação de Riscos'!U28","v":0},null,{"$f":"'Avaliação de Riscos'!V28","v":"14. EMBALAMENTO PRIMÁRIO"}]
[null,null,null,null,null,null,null,null,null,null,null,null,null,null,{"$f":"'Avaliação de Riscos'!U32","v":0},null,{"$f":"'Avaliação de Riscos'!V32","v":"17. EMERGÊNCIAS"}]
[null,null,null,null,null,null,null,null,null,null,null,null,null,null,{"$f":"'Avaliação de Riscos'!U33","v":0},null,{"$f":"'Avaliação de Riscos'!V33","v":"00:00:00"}]
[null,null,null,null,null,null,null,null,null,null,null,null,null,null,{"$f":"'Avaliação de Riscos'!U34","v":0},null,{"$f":"'Avaliação de Riscos'!V34","v":"00:00:00"}]
[null,null,null,null,null,null,null,null,null,null,null,null,null,null,{"$f":"'Avaliação de Riscos'!U43","v":0},null,{"$f":"'Avaliação de Riscos'!V43","v":"00:00:00"}]
[null,null,null,null,null,null,null,null,null,null,null,null,null,null,{"$f":"'Avaliação de Riscos'!U48","v":0},null,{"$f":"'Avaliação de Riscos'!V48","v":"00:00:00"}]
[null,null,null,null,null,null,null,null,null,null,null,null,null,null,{"$f":"'Avaliação de Riscos'!#REF!","v":{"$error":"#REF!"}},null,{"$f":"'Avaliação de Riscos'!#REF!","v":{"$error":"#REF!"}}]
[null,null,null,null,null,null,null,null,null,null,null,null,null,null,{"$f":"'Avaliação de Riscos'!U74","v":0},null,{"$f":"'Avaliação de Riscos'!V74","v":"00:00:00"}]
[null,null,null,null,null,null,null,null,null,null,null,null,null,null,{"$f":"'Avaliação de Riscos'!U88","v":0},null,{"$f":"'Avaliação de Riscos'!V88","v":"00:00:00"}]
[null,null,null,null,null,null,null,null,null,null,null,null,null,null,{"$f":"'Avaliação de Riscos'!#REF!","v":{"$error":"#REF!"}},null,{"$f":"'Avaliação de Riscos'!#REF!","v":{"$error":"#REF!"}}]
[null,null,null,null,null,null,null,null,null,null,null,null,null,null,{"$f":"'Avaliação de Riscos'!#REF!","v":{"$error":"#REF!"}},null,{"$f":"'Avaliação de Riscos'!#REF!","v":{"$error":"#REF!"}}]
[null,null,null,null,null,null,null,null,null,null,null,null,null,null,{"$f":"'Avaliação de Riscos'!#REF!","v":{"$error":"#REF!"}},null,{"$f":"'Avaliação de Riscos'!#REF!","v":{"$error":"#REF!"}}]
[null,null,null,null,null,null,null,null,null,null,null,null,null,null,{"$f":"'Avaliação de Riscos'!#REF!","v":{"$error":"#REF!"}},null,{"$f":"'Avaliação de Riscos'!#REF!","v":{"$error":"#REF!"}}]
[null,null,null,null,null,null,null,null,null,null,null,null,null,null,{"$f":"'Avaliação de Riscos'!#REF!","v":{"$error":"#REF!"}},null,{"$f":"'Avaliação de Riscos'!#REF!","v":{"$error":"#REF!"}}]
[null,null,null,null,null,null,null,null,null,null,null,null,null,null,{"$f":"'Avaliação de Riscos'!#REF!","v":{"$error":"#REF!"}},null,{"$f":"'Avaliação de Riscos'!#REF!","v":{"$error":"#REF!"}}]

{"sheet":"Relatório com Soluções","index":2,"n_rows":274,"n_cols":10,"rows_kept":274,"cut":false,"hidden":false,"merged":[[271,0,271,8],[271,9,271,17],[272,1,272,8],[273,0,273,8],[273,9,273,17],[268,0,268,8],[255,1,255,8],[256,0,256,8],[256,9,256,17],[257,1,257,8],[258,0,258,8],[258,9,258,17],[247,0,247,8],[231,0,231,8],[237,1,237,8],[238,0,238,8],[238,9,238,17],[239,1,239,8],[240,0,240,8],[240,9,240,17],[270,1,270,8],[251,1,251,8],[252,0,252,8],[252,9,252,17],[253,1,253,8],[254,0,254,8],[254,9,254,17],[262,9,262,17],[262,0,262,8],[261,1,261,8],[260,9,260,17],[260,0,260,8],[259,1,259,8],[225,0,225,8],[225,9,225,17],[235,1,235,8],[236,0,236,8],[236,9,236,17],[207,0,207,8],[222,1,222,8],[223,0,223,8],[223,9,223,17],[224,1,224,8],[215,1,215,8],[216,0,216,8],[216,9,216,17],[217,1,217,8],[218,0,218,8],[218,9,218,17],[212,0,212,8],[212,9,212,17],[213,1,213,8],[214,0,214,8],[214,9,214,17],[178,1,178,8],[179,0,179,8],[179,9,179,17],[189,1,189,8],[190,0,190,8],[190,9,190,17],[175,0,175,8],[175,9,175,17],[176,1,176,8],[177,0,177,8],[177,9,177,17],[187,0,187,8],[180,1,180,8],[181,0,181,8],[181,9,181,17],[168,0,168,8],[174,1,174,8],[161,1,161,8],[162,0,162,8],[162,9,162,17],[172,1,172,8],[173,0,173,8],[173,9,173,17],[157,1,157,8],[158,0,158,8],[158,9,158,17],[159,1,159,8],[160,0,160,8],[160,9,160,17],[137,1,137,8],[138,0,138,8],[138,9,138,17],[142,1,142,8],[143,0,143,8],[143,9,143,17],[152,1,152,8],[153,0,153,8],[153,9,153,17],[150,0,150,8],[144,1,144,8],[145,0,145,8],[145,9,145,17],[123,1,123,8],[124,0,124,8],[124,9,124,17],[135,1,135,8],[136,0,136,8],[136,9,136,17],[119,1,119,8],[120,0,120,8],[120,9,120,17],[121,1,121,8],[122,0,122,8],[122,9,122,17],[131,0,131,8],[113,0,113,8],[113,9,113,17],[114,1,114,8],[115,0,115,8],[115,9,115,17],[110,1,110,8],[111,0,111,8],[111,9,111,17],[108,0,108,8],[112,1,112,8],[100,1,100,8],[101,0,101,8],[101,9,101,17],[102,1,102,8],[103,0,103,8],[103,9,103,17],[94,0,94,8],[94,9,94,17],[85,0,85,8],[98,1,98,8],[99,0,99,8],[99,9,99,17],[93,1,93,8],[90,0,90,8],[90,9,90,17],[91,1,91,8],[92,0,92,8],[92,9,92,17],[77,1,77,8],[78,0,78,8],[78,9,78,17],[89,1,89,8],[75,1,75,8],[76,0,76,8],[76,9,76,17],[68,1,68,8],[69,0,69,8],[69,9,69,17],[70,1,70,8],[71,0,71,8],[71,9,71,17],[4,0,4,8],[0,3,2,8],[9,9,9,17],[9,0,9,8],[8,1,8,8],[10,1,10,8],[11,9,11,17],[11,0,11,8],[12,1,12,8],[13,9,13,17],[13,0,13,8],[14,1,14,8],[15,9,15,17],[15,0,15,8],[16,1,16,8],[17,0,17,8],[17,9,17,17],[25,1,25,8],[23,0,23,8],[26,0,26,8],[26,9,26,17],[30,1,30,8],[31,0,31,8],[31,9,31,17],[33,0,33,8],[33,9,33,17],[43,1,43,8],[39,0,39,8],[32,0,32,8],[44,0,44,8],[44,9,44,17],[50,9,50,17],[51,1,51,8],[45,1,45,8],[46,0,46,8],[46,9,46,17],[47,1,47,8],[67,0,67,8],[67,9,67,17],[62,0,62,8],[52,0,52,8],[52,9,52,17],[53,1,53,8],[54,0,54,8],[54,9,54,17],[66,1,66,8],[48,0,48,8],[48,9,48,17],[49,1,49,8],[50,0,50,8],[200,1,200,8],[201,0,201,8],[201,9,201,17],[211,1,211,8],[194,1,194,8],[195,0,195,8],[195,9,195,17],[196,1,196,8],[197,0,197,8],[197,9,197,17],[198,1,198,8],[199,0,199,8],[199,9,199,17]]}
[]
[]
[]
[]
["Produtos Hortofrutícolas - Massas e Molhos"]
[]
[{"$f":"'Avaliação de Riscos'!A7","v":"1. GESTÃO DA SEGURANÇA E SAÚDE NO TRABALHO"},null,null,null,null,null,null,null,null,"Sugestões"]
[]
[{"$f":"'Avaliação de Riscos'!A9","v":"1.1"},{"$f":"'Avaliação de Riscos'!B9:G9","v":"A empresa tem os serviços de segurança e saúde no trabalho organizados."}]
[{"$f":"IF('Avaliação de Riscos'!S9=1,'Relatório com Soluções'!J10,\"Risco controlado/Inexistente.\")","v":"Risco controlado/Inexistente."},null,null,null,null,null,null,null,null,"Solução - Organizar os serviços de SST:\n– Preferencialmente as empresas devem optar pela modalidade de serviços internos, caso não tenha os meios técnicos e humanos adequados, pode optar pelas modalidades de serviços externos ou comuns. \n– Nas microempresas (até 9 trabalhadores) e cuja atividade não seja de risco elevado, os serviços de segurança podem ser assegurados pela entidade patronal, ou por trabalhador designado, sendo necessário para isso frequentar curso de formação adequada e solicitar autorização à ACT – Autoridade para as Condições do Trabalho. Os serviços de saúde podem ser assegurados através das unidades do Serviço Nacional de Saúde (SNS) que tenham ao dispor serviços de medicina do trabalho."]
[{"$f":"'Avaliação de Riscos'!A10","v":"1.2"},{"$f":"'Avaliação de Riscos'!B10:G10","v":"Foram realizadas avaliações de riscos antes de se adotar as medidas de prevenção."}]
[{"$f":"IF('Avaliação de Riscos'!S10=1,'Relatório com Soluções'!J12,\"Risco controlado/Inexistente.\")","v":"Risco controlado/Inexistente."},null,null,null,null,null,null,null,null,"Solução - Elaboração do plano de medidas:\n– Elaborar um plano de medidas, com vista à eliminação ou minimização dos riscos, de acordo com a avaliação de riscos efetuada;\n– O plano de medidas deve conter no mínimo, para além das medidas a implementar, quem é o responsável pela implementação das medidas, prazo de execução, custos (financeiros e/ou humanos) e a periodicidade de acompanhamento da implementação das medidas."]
[{"$f":"'Avaliação de Riscos'!A11","v":"1.3"},{"$f":"'Avaliação de Riscos'!B11:G11","v":"Os trabalhadores são consultados, por escrito, pelo menos uma vez por ano em matérias de Segurança e Saúde no Trabalho."}]
[{"$f":"IF('Avaliação de Riscos'!S11=1,'Relatório com Soluções'!J14,\"Risco controlado/Inexistente.\")","v":"Risco controlado/Inexistente."},null,null,null,null,null,null,null,null,"Solução - Criar documentos de informação e consultar os trabalhadores:\n– Criar documentos onde os trabalhadores possam ser envolvidos na seleção de equipamentos de proteção individual;\n– Criar documentos onde os trabalhadores sejam encorajados a participar na avaliação de riscos, dando sugestões e na identificação de perigos;\n– Criar documentos para os trabalhadores darem sugestões das suas necessidades de formação."]
[{"$f":"'Avaliação de Riscos'!A12","v":"1.4"},{"$f":"'Avaliação de Riscos'!B12:G12","v":"Os trabalhadores dispõem de formação e informação atualizada sobre Segurança e Saúde no Trabalho."}]
[{"$f":"IF('Avaliação de Riscos'!S12=1,'Relatório com Soluções'!J16,\"Risco controlado/Inexistente.\")","v":"Risco controlado/Inexistente."},null,null,null,null,null,null,null,null,"Solução 1 - Definir um conteúdo programático de ações de formação:\n– Definir um conteúdo programático, de acordo com a avaliação de riscos, na área da segurança e saúde no trabalho e dar formação aos trabalhadores.\nSolução 2 - Criar documentos de informação para os trabalhadores sobre os riscos de SST:\n– Criar documentos de informação para os trabalhadores sobre os riscos existentes em cada posto de trabalho e na empresa de uma forma genérica. Nesses documentos deve constar de forma simples e inequívoca quais as regras e obrigações que os trabalhadores devem adotar em cada situação de risco.\nSolução 3 - Criar registos das ações de formação e informação dadas:\n– Os registos das ações de formação e de informação dadas na empresa são fundamentais para comprovar que essas ações foram realizadas, com a indicação da data das ações, os objetivos e quem participou."]
[{"$f":"'Avaliação de Riscos'!A13","v":"1.5"},{"$f":"'Avaliação de Riscos'!B13:G13","v":"É realizada a vigilância da saúde dos trabalhadores."}]
[{"$f":"IF('Avaliação de Riscos'!S13=1,'Relatório com Soluções'!J18,\"Risco controlado/Inexistente.\")","v":"Risco controlado/Inexistente."},null,null,null,null,null,null,null,null,"Solução 1 - Realizar os exames de admissão:\n– Criar um procedimento interno para a realização de exames de admissão, antes da prestação de trabalho ou, se a urgência da admissão o justificar, nos 15 dias seguintes.\nSolução 2 - Elaborar lista de trabalhadores para a realização de exames médicos:\n– Elaborar e fornecer ao médico de trabalho uma lista com o nome dos trabalhadores e respetiva idade por forma a se realizarem os exames médicos de acordo com a periodicidade definida na lei.\nSolução 3 - Comunicar os perigos e riscos existentes ao médico de trabalho:\n– Comunicar ao médico de trabalho quais os perigos e riscos existentes nos postos de trabalho."]
[]
[]
[]
[]
[]
["Produtos Hortofrutícolas - Massas e Molhos"]
[]
[{"$f":"'Avaliação de Riscos'!A14","v":"1.6"},{"$f":"'Avaliação de Riscos'!B14:G14","v":"Anualmente é preenchido e enviado o relatório único."}]
[{"$f":"IF('Avaliação de Riscos'!S14=1,'Relatório com Soluções'!J27,\"Risco controlado/Inexistente.\")","v":"Risco controlado/Inexistente."},null,null,null,null,null,null,null,null,"Solução - Preencher e enviar o relatório único:\n– Consultar, no início de cada ano, o sitio da internet do relatório único, para verificar a data de entrega do mesmo e seguir os passos aí indicados para o preenchimento e entrega do relatório."]
[]
[{"$f":"'Avaliação de Riscos'!A16","v":"2. INSTALAÇÕES"}]
[]
[{"$f":"'Avaliação de Riscos'!A18","v":"2.1"},{"$f":"'Avaliação de Riscos'!B18:G18","v":"Os pavimentos dos locais de trabalho são fixos, estáveis, antiderrapantes, sem inclinações perigosas, saliências e cavidades."}]
[{"$f":"IF('Avaliação de Riscos'!S18=1,'Relatório com Soluções'!J32,\"Risco controlado/Inexistente.\")","v":"Risco controlado/Inexistente."},null,null,null,null,null,null,null,null,"Solução 1 - Garantir que o piso mantém as características antiderrapantes:\n– Limpar com produtos adequados e com a frequência certa;\n– A partir de determinada altura, dependendo do material do pavimento, realizar um tratamento de superfície para melhorar a resistência ao deslizamento, ou eventualmente colocar tiras antiderrapantes;\n– Questionar o fabricante/fornecedor acerca do melhor método de limpeza, detergentes mais adequados e as corretas concentrações para usar durante a limpeza. Seguidamente, informe os trabalhadores como usar os métodos de limpeza certos.\nSolução 2 - Reparar os pavimentos danificados:\n– Analisar o pavimento existente e identificar problemas, tendo em atenção que os pavimentos devem ser fixos, estáveis, antiderrapantes, sem inclinações perigosas, saliências e cavidades para evitar a ocorrência de acidentes de trabalho;\n– Efetuar a reparação que se afigure mais adequada.\nSolução 3 - Substituir os pavimentos escorregadios, por outro piso mais adequado:\n– Quando não for possível melhorar a resistência ao deslizamento através de outros meios pode ser necessário substituir o piso. \nSolução 4 - Eliminar as inclinações perigosas existentes na empresa:\n– Eliminar as inclinações perigosas existentes na empresa e que possam colocar em risco os trabalhadores.\nSolução 5 - Eliminar ou proteger e sinalizar as zonas dos pavimentos com saliências e cavidades:\n– Preferencialmente devem ser eliminadas todas as zonas dos pavimentos com saliências e cavidades no pavimento. Não sendo possível a sua eliminação, estas devem ser protegidas e sinalizadas por forma a alertar os trabalhadores com a devida antecedência de modo a evitar acidentes de trabalho.\nSolução 6 - Garantir que todas as aberturas existentes no piso têm coberturas adequadas:\n-  Todas as aberturas existentes no piso tenham coberturas (grelhas, tampas, etc.), de material resistente e não escorregadio;\n- Todas as coberturas permaneçam devidamente colocadas nos seus lugares;\n- Quando as coberturas forem removidas para manutenção ou reparação, seja assegurado que o período de tempo será o mínimo possível e que a abertura seja sinalizada."]
[{"$f":"'Avaliação de Riscos'!A19","v":"2.2"},{"$f":"'Avaliação de Riscos'!B19:G19","v":"Os locais de trabalho estão arrumados e bem organizados."}]
[{"$f":"IF('Avaliação de Riscos'!S19=1,'Relatório com Soluções'!J34,\"Risco controlado/Inexistente.\")","v":"Risco controlado/Inexistente."},null,null,null,null,null,null,null,null,"Solução 1 - Limpar diariamente os locais de trabalho:\n– Efetuar a limpeza diária dos locais de trabalho.\nSolução 2 - Arrumar os locais de trabalho:\n– Arrumar os locais de trabalho evitando, por exemplo, a existência de utensílios, caixas, cabos ou alimentos espalhados pelo chão."]
[]
[]
[]
[]
[]
["Produtos Hortofrutícolas - Massas e Molhos"]
[]
[{"$f":"'Avaliação de Riscos'!A21","v":"3. AMBIENTE TÉRMICO, ILUMINAÇÃO, RUÍDO E PRODUTOS QUÍMICOS"}]
[]
[{"$f":"'Avaliação de Riscos'!A23","v":"3.1"},{"$f":"'Avaliação de Riscos'!B23:G23","v":"A temperatura e a humidade do ar dos postos de trabalho são adequadas à saúde dos trabalhadores."}]
[{"$f":"IF('Avaliação de Riscos'!S23=1,'Relatório com Soluções'!J45,\"Risco controlado/Inexistente.\")","v":"Risco controlado/Inexistente."},null,null,null,null,null,null,null,null,"Solução - Avaliar a temperatura e humidade do ar para garantir que são adequadas:\n– Por vezes é suficiente manter, sempre que possível, os portões e janelas fechados; \n– isolar os tetos e telhados de modo a evitar a entrada do frio ou calor do exterior;\n– colocar equipamentos de ar condicionado (principalmente nos escritórios)."]
[{"$f":"'Avaliação de Riscos'!A24","v":"3.2"},{"$f":"'Avaliação de Riscos'!B24:G24","v":"A iluminação nos locais de trabalho é adequada aos requisitos visuais das tarefas que são executadas."}]
[{"$f":"IF('Avaliação de Riscos'!S24=1,'Relatório com Soluções'!J47,\"Risco controlado/Inexistente.\")","v":"Risco controlado/Inexistente."},null,null,null,null,null,null,null,null,"Solução 1 - Medições dos níveis de iluminância nos locais de trabalho:\n– Realizar medições dos níveis de iluminância nos locais de trabalho e zonas de circulação de pessoas.\nSolução 2 - Requisitos visuais adequados às tarefas efetuadas pelos trabalhadores:\n– Realizar as alterações necessárias para cumprir os requisitos visuais adequados às tarefas efetuadas pelos trabalhadores, de acordo com as medições de iluminância efetuadas.\nSolução 3 - Limpeza periódica das áreas envidraçadas e das luminárias:\n– Limpar periodicamente as áreas envidraçadas e as luminárias de forma a garantir os níveis de iluminância recomendados."]
[{"$f":"'Avaliação de Riscos'!A25","v":"3.3"},{"$f":"'Avaliação de Riscos'!B25:G25","v":"A aquisição dos protetores auditivos teve em atenção as medições de ruído efetuadas."}]
[{"$f":"IF('Avaliação de Riscos'!S25=1,'Relatório com Soluções'!J49,\"Risco controlado/Inexistente.\")","v":"Risco controlado/Inexistente."},null,null,null,null,null,null,null,null,"Solução 1 - Seleção de protetores de ouvido adequados:\n– Selecionar os protetores auditivos tendo em conta as medições de ruído ocupacional efetuadas.\nSolução 2 - Aquisição dos protetores auditivos adequados:\n– Adquirir os protetores auditivos de acordo com a seleção efetuada."]
[{"$f":"'Avaliação de Riscos'!A26","v":"3.4"},{"$f":"'Avaliação de Riscos'!B26:G26","v":"Nos locais de trabalho onde os trabalhadores possam estar expostos a níveis de ruído acima dos valores de ação superior (85 dB(A)), o empregador estabelece e aplica um programa de medidas técnicas e organizacionais."}]
[{"$f":"IF('Avaliação de Riscos'!S26=1,'Relatório com Soluções'!J51,\"Risco controlado/Inexistente.\")","v":"Risco controlado/Inexistente."},null,null,null,null,null,null,null,null,"Solução 1 - Medidas de redução de ruído:\n– Identificar as principais fontes de ruído e definir medidas de redução de ruído na fonte. Por exemplo, encapsular e/ou colocação de isolamento acústico nas máquinas, ou parte de máquinas ruidosas; colocação de silenciadores nas pistolas de ar comprimido.\nSolução 2 - Definição de conteúdos programáticos sobre ruído ocupacional:\n– Definir conteúdos programáticos sobre ruído ocupacional e identificar os trabalhadores a ser abrangidos em ações de sensibilização sobre este tema."]
[{"$f":"'Avaliação de Riscos'!A27","v":"3.5"},{"$f":"'Avaliação de Riscos'!B27:G27","v":"Existem fichas de dados de segurança dos produtos químicos perigosos utilizados na empresa."}]
[{"$f":"IF('Avaliação de Riscos'!S27=1,'Relatório com Soluções'!J53,\"Risco controlado/Inexistente.\")","v":"Risco controlado/Inexistente."},null,null,null,null,null,null,null,null,"Solução 1 - Solicitar aos fornecedores fichas de dados de segurança:\n– Solicitar aos fornecedores fichas de dados de segurança de todos os produtos químicos perigosos.\nSolução 2 - Disponibilizar aos trabalhadores as fichas de dados de segurança:\n– Disponibilizar aos trabalhadores as fichas de dados de segurança.\nSolução 3 - Disponibilizar aos trabalhadores as fichas de dados de segurança resumo:\n– Disponibilizar aos trabalhadores as fichas de dados de segurança resumo."]
[{"$f":"'Avaliação de Riscos'!A28","v":"3.6"},{"$f":"'Avaliação de Riscos'!B28:G28","v":"Todas as embalagens de produtos químicos estão rotuladas."}]
[{"$f":"IF('Avaliação de Riscos'!S28=1,'Relatório com Soluções'!J55,\"Risco controlado/Inexistente.\")","v":"Risco controlado/Inexistente."},null,null,null,null,null,null,null,null,"Solução - Rotular corretamente todas as embalagens de produtos químicos devendo constar no mínimo:\n• Nome do produto químico ou da mistura;\n• Nome do fabricante ou fornecedor;\n• Pictograma de perigo (caso exista);\n• Frases de advertência e recomendações de prudência (caso existam)."]
[]
[]
[]
[]
[]
[]
[]
["Produtos Hortofrutícolas - Massas e Molhos"]
[]
[{"$f":"'Avaliação de Riscos'!A30","v":"4. RISCOS PSICOSSOCIAIS E STRESSE"}]
[]
[{"$f":"'Avaliação de Riscos'!A32","v":"4.1"},{"$f":"'Avaliação de Riscos'!B32:G32","v":"Os trabalhadores não apresentam queixas da existência de violência verbal ou física."}]
[{"$f":"IF('Avaliação de Riscos'!S32=1,'Relatório com Soluções'!J68,\"Risco controlado/Inexistente.\")","v":"Risco controlado/Inexistente."},null,null,null,null,null,null,null,null,"Solução 1 - Questionar os trabalhadores sobre a existência de violência verbal ou física:\n– Questionar periodicamente os trabalhadores sobre a existência de violência verbal ou física entre colegas de trabalho ou com os clientes.\nSolução 2 - Realizar ações de sensibilização sobre violência verbal e física nos locais de trabalho."]
[{"$f":"'Avaliação de Riscos'!A33","v":"4.2"},{"$f":"'Avaliação de Riscos'!B33:G33","v":"Existe um procedimento para registar os comportamentos abusivos de terceiros."}]
[{"$f":"IF('Avaliação de Riscos'!S33=1,'Relatório com Soluções'!J70,\"Risco controlado/Inexistente.\")","v":"Risco controlado/Inexistente."},null,null,null,null,null,null,null,null,"Solução 1 - Realizar ações de formação e informação sobre comportamento abusivo nos locais de trabalho.\nSolução 2 - Implementar um procedimento interno sobre comportamentos abusivos, onde conste as atitudes e medidas a adotar perante um comportamento abusivo:\n– Criar um procedimento interno, onde conste as atitudes e medidas a adotar perante os comportamentos abusivos."]
[{"$f":"'Avaliação de Riscos'!A34","v":"4.3"},{"$f":"'Avaliação de Riscos'!B34:G34","v":"Os trabalhadores conhecem as suas tarefas e dispõem de todas as condições para as efetuar corretamente (competências, instruções, materiais, equipamentos, etc.)."}]
[{"$f":"IF('Avaliação de Riscos'!S34=1,'Relatório com Soluções'!J72,\"Risco controlado/Inexistente.\")","v":"Risco controlado/Inexistente."},null,null,null,null,null,null,null,null,"Solução 1 - Dar competências e formação adequada aos trabalhadores para as tarefas que desempenham.\nSolução 2 - Questionar periodicamente os trabalhadores se os equipamentos disponíveis dão resposta atempada a todas as solicitações."]
[]
[{"$f":"'Avaliação de Riscos'!A41","v":"5. RISCOS ERGONÓMICOS"}]
[]
[{"$f":"'Avaliação de Riscos'!A43","v":"5.1"},{"$f":"'Avaliação de Riscos'!B43:G43","v":"Sempre que sejam movimentadas manualmente cargas pesadas ou volumosas são adotadas medidas que evitem o risco de lesões dorso lombares."}]
[{"$f":"IF('Avaliação de Riscos'!S43=1,'Relatório com Soluções'!J77,\"Risco controlado/Inexistente.\")","v":"Risco controlado/Inexistente."},null,null,null,null,null,null,null,null,"Solução 1 - Proporcionar auxílio na movimentação de cargas pesadas:\n– Efetuar a movimentação de cargas pesadas com auxílio de carrinhos de transporte ou com a ajuda de outro colega.\nSolução 2 - Proporcionar auxílio na movimentação de cargas volumosas:\n– Efetuar a movimentação de cargas volumosas com auxílio de carrinhos de transporte ou com a ajuda de outro colega.\nSolução 3 - Dar formação e informação sobre movimentação de cargas:\n– Providenciar formação e informação aos trabalhadores de como se realiza a movimentação de cargas de modo adequado."]
[{"$f":"'Avaliação de Riscos'!A44","v":"5.2"},{"$f":"'Avaliação de Riscos'!B44:G44","v":"O posto de trabalho está bem adaptado para o desenvolvimento de atividades numa posição em pé."}]
[{"$f":"IF('Avaliação de Riscos'!S44=1,'Relatório com Soluções'!J79,\"Risco controlado/Inexistente.\")","v":"Risco controlado/Inexistente."},null,null,null,null,null,null,null,null,"Solução 1 - Adaptar o posto de trabalho à altura do trabalhador:\n– Fornecer mesas altas adequadas à altura dos trabalhadores, podendo-se utilizar como ponto de referência a altura a que se encontram os cotovelos dos trabalhadores. O cotovelo deve estar ao mesmo nível do plano de trabalho.\n– Devem disponibilizar-se mesas de trabalho com diferentes alturas, de modo que todos os trabalhadores possam encontrar uma mesa com a altura adequada à sua estatura. Uma melhor solução será dispor de mesas de trabalho ajustáveis em altura. Neste caso, a faixa de ajuste deverá ser de 20 cm. Assim, cada trabalhador poderá ajustar a altura da mesa como desejar e se sentir mais confortável.\nSolução 2 - Existência de apoio de pés:\n– Assegurar que a mesa ou bancada de trabalho tenha apoio de pés.\nSolução 3 - Existência de tapetes anti fadiga:\n– Assegurar que junto à mesa ou bancada de trabalho tenha tapetes anti fadiga.\nSolução 4 - Promover formação para os trabalhadores:\n– Realizar periodicamente formação e informação aos trabalhadores sobre os perigos e riscos associados a trabalho de pé."]
[]
[]
[]
[]
[]
[]
["Produtos Hortofrutícolas - Massas e Molhos"]
[]
[{"$f":"'Avaliação de Riscos'!A46","v":"6. RISCOS ELÉTRICOS"}]
[]
[{"$f":"'Avaliação de Riscos'!A48","v":"6.1"},{"$f":"'Avaliação de Riscos'!B48:G48","v":"O número e disposição das tomadas de eletricidade são suficientes, não existindo necessidade de recorrer sistematicamente e de forma contínua à utilização de extensões e “triplas”."}]
[{"$f":"IF('Avaliação de Riscos'!S48=1,'Relatório com Soluções'!J91,\"Risco controlado/Inexistente.\")","v":"Risco controlado/Inexistente."},null,null,null,null,null,null,null,null,"Solução - Assegurar a existência de um número adequado de tomadas de corrente elétrica:\n– Analisar qual o número necessário de tomadas elétricas é a sua disposição mais correta;\n– Proceder à instalação das tomadas, por um técnico qualificado, tenho o cuidado de garantir que o dimensionamento da instalação elétrica permite essa alteração. "]
[{"$f":"'Avaliação de Riscos'!A49","v":"6.2"},{"$f":"'Avaliação de Riscos'!B49:G49","v":"Os cabos elétricos de alimentação de máquinas ou equipamentos, bem como as extensões elétricas são mantidos em bom estado."}]
[{"$f":"IF('Avaliação de Riscos'!S49=1,'Relatório com Soluções'!J93,\"Risco controlado/Inexistente.\")","v":"Risco controlado/Inexistente."},null,null,null,null,null,null,null,null,"Solução - Garantir que os cabos elétricos de alimentação de máquinas ou equipamentos, bem como as extensões elétricas são mantidos em bom estado:\n– Verificar regularmente os cabos da instalação elétrica permanente, bem como os cabos da instalação temporária (extensões), para avaliar se existem danos visíveis. Pode implementar um documento para registar todas as verificações efetuadas;\n– Substituir imediatamente os cabos elétricos se forem identificados defeitos no isolamento, como cortes, abrasão, deformação ou danos devidos a sobreaquecimento."]
[{"$f":"'Avaliação de Riscos'!A50","v":"6.3"},{"$f":"'Avaliação de Riscos'!B50:G50","v":"Os trabalhadores receberam informação/ formação relativa a riscos elétricos."}]
[{"$f":"IF('Avaliação de Riscos'!S50=1,'Relatório com Soluções'!J95,\"Risco controlado/Inexistente.\")","v":"Risco controlado/Inexistente."},null,null,null,null,null,null,null,null,"Solução - Informar os trabalhadores acerca dos riscos elétricos e das medidas gerais de prevenção:\n– Informar os trabalhadores acerca dos riscos elétricos no geral;\n– Dar instruções claras aos trabalhadores, relativamente às medidas gerais de prevenção e proteção face ao risco elétrico."]
[]
[{"$f":"'Avaliação de Riscos'!A52","v":"7. GESTÃO DA SEGURANÇA DE MÁQUINAS E EQUIPAMENTOS DE TRABALHO"}]
[]
[{"$f":"'Avaliação de Riscos'!A54","v":"7.1"},{"$f":"'Avaliação de Riscos'!B54:G54","v":"Existe um inventário de todas as máquinas."}]
[{"$f":"IF('Avaliação de Riscos'!S54=1,'Relatório com Soluções'!J100,\"Risco controlado/Inexistente.\")","v":"Risco controlado/Inexistente."},null,null,null,null,null,null,null,null,"Solução - Elaborar um inventário de todas as máquinas existentes (tipo, localização, ano de construção, etc.)."]
[{"$f":"'Avaliação de Riscos'!A55","v":"7.2"},{"$f":"'Avaliação de Riscos'!B55:G55","v":"Existe um relatório, para cada máquina, relativo à sua entrada em funcionamento."}]
[{"$f":"IF('Avaliação de Riscos'!S55=1,'Relatório com Soluções'!J102,\"Risco controlado/Inexistente.\")","v":"Risco controlado/Inexistente."},null,null,null,null,null,null,null,null,"Solução - Elaborar um relatório sobre a colocação em funcionamento de cada máquina ou equipamento:\n– elaborar um relatório sobre a colocação em funcionamento de cada máquina ou equipamento, assegurando-se que a instalação da máquina/equipamento ocorreu sem incidentes e que está apto a funcionar sem falhas, bem como, todos os utilizadores encontram-se habilitados a operar corretamente com os mesmos."]
[{"$f":"'Avaliação de Riscos'!A56","v":"7.3"},{"$f":"'Avaliação de Riscos'!B56:G56","v":"É feita regularmente uma verificação do estado de segurança às máquinas e equipamentos de trabalho."}]
[{"$f":"IF('Avaliação de Riscos'!S56=1,'Relatório com Soluções'!J104,\"Risco controlado/Inexistente.\")","v":"Risco controlado/Inexistente."},null,null,null,null,null,null,null,null,"Solução 1 - Criar uma lista de verificação com os requisitos mínimos de segurança dos equipamentos de trabalho.\nSolução 2 - Definir uma periodicidade para a verificação do cumprimento dos requisitos mínimos e se necessário de ensaios periódicos dos equipamentos de trabalho sujeitos a influências que possam provocar deteriorações suscetíveis de causar riscos.\nSolução 3 - Efetuar a verificação do cumprimento dos requisitos mínimos após a instalação de equipamentos de trabalho."]
[]
[]
[]
[]
["Produtos Hortofrutícolas - Massas e Molhos"]
[]
[{"$f":"'Avaliação de Riscos'!A57","v":"7.4"},{"$f":"'Avaliação de Riscos'!B57:G57","v":"As diferentes funções de comando, de cada máquina, são claras e não existe a possibilidade de ocorrerem comandos involuntários."}]
[{"$f":"IF('Avaliação de Riscos'!S57=1,'Relatório com Soluções'!J112,\"Risco controlado/Inexistente.\")","v":"Risco controlado/Inexistente."},null,null,null,null,null,null,null,null,"Solução 1 - Identificar em todas as máquinas a clareza das funções de todas as funções dos comandos das máquinas:\n– Questionar todos os trabalhadores sobre a existência de funções de comandos das máquinas que possam ter uma interpretação duvidosa ou inadequada.\nSolução 2 - Melhorar e corrigir os comandos das máquinas que possam dar origem a enganos de utilização, por parte dos trabalhadores:\n– Corrigir ou melhorar todos os comandos das máquinas que possam dar origem a interpretações erradas da função dos comandos das máquinas ou mesmos o acionamento acidental das máquinas."]
[{"$f":"'Avaliação de Riscos'!A58","v":"7.5"},{"$f":"'Avaliação de Riscos'!B58:G58","v":"As máquinas estão equipadas, quando necessário, com mecanismos de segurança e proteções (por exemplo para proteção das partes móveis ou para combater o ruído), fixos e que não podem ser retirados."}]
[{"$f":"IF('Avaliação de Riscos'!S58=1,'Relatório com Soluções'!J114,\"Risco controlado/Inexistente.\")","v":"Risco controlado/Inexistente."},null,null,null,null,null,null,null,null,"Solução 1 - Identificar todas as máquinas que não possuam proteções para contra partes móveis, emissão de ruido, etc.:\n– Efetuar uma listagem com todas as máquinas que possuem dispositivos de proteção contra partes móveis em movimentos, emissão de ruído, entre outras.\nSolução 2 - Colocar, nas zonas perigosas, proteções nas máquinas:\n– Colocar, nas zonas perigosas, proteções nas máquinas, por forma a evitar que os trabalhadores entem em contacto direto com partes móveis em movimento ou estejam expostos a níveis de ruído elevados."]
[{"$f":"'Avaliação de Riscos'!A59","v":"7.6"},{"$f":"'Avaliação de Riscos'!B59:G59","v":"Existem manuais de instrução, em português, dos equipamentos de trabalho."}]
[{"$f":"IF('Avaliação de Riscos'!S59=1,'Relatório com Soluções'!J116,\"Risco controlado/Inexistente.\")","v":"Risco controlado/Inexistente."},null,null,null,null,null,null,null,null,"Solução 1 - Criar um procedimento de aquisição de máquinas e equipamentos onde esteja incluído a obrigatoriedade de entregar os manuais dessas máquinas e equipamentos em português.\nSolução 2 - Efetuar o levantamento dos manuais dos equipamentos existentes na empresa. Solicitar ou elaborar os manuais dos equipamentos que não possuam os manuais dos fabricantes."]
[]
[{"$f":"'Avaliação de Riscos'!A61","v":"8. EQUIPAMENTOS DE PROTEÇÃO INDIVIDUAL (EPI)"}]
[]
[{"$f":"'Avaliação de Riscos'!A63","v":"8.1"},{"$f":"'Avaliação de Riscos'!B63:G63","v":"Os equipamentos de proteção individual foram adquiridos tendo em conta a avaliação de riscos efetuada na empresa."}]
[{"$f":"IF('Avaliação de Riscos'!S63=1,'Relatório com Soluções'!J121,\"Risco controlado/Inexistente.\")","v":"Risco controlado/Inexistente."},null,null,null,null,null,null,null,null,"Solução 1 - Elaborar uma grelha dos EPI adequados em função dos riscos existentes.\nSolução 2 - Efetuar a aquisição dos EPI de acordo com a avaliação de riscos efetuada. "]
[{"$f":"'Avaliação de Riscos'!A64","v":"8.2"},{"$f":"'Avaliação de Riscos'!B64:G64","v":"Todos os equipamentos de proteção individual têm marcação CE."}]
[{"$f":"IF('Avaliação de Riscos'!S64=1,'Relatório com Soluções'!J123,\"Risco controlado/Inexistente.\")","v":"Risco controlado/Inexistente."},null,null,null,null,null,null,null,null,"Solução 1 - Verificar se todos os EPI utilizados na empresa possuem marcação CE.\nSolução 2 - Substituir todos os EPI que não possuam marcação CE, por outros que a possuam."]
[{"$f":"'Avaliação de Riscos'!A65","v":"8.3"},{"$f":"'Avaliação de Riscos'!B65:G65","v":"Sempre que necessário os trabalhadores utilizam os equipamentos de proteção individual."}]
[{"$f":"IF('Avaliação de Riscos'!S65=1,'Relatório com Soluções'!J125,\"Risco controlado/Inexistente.\")","v":"Risco controlado/Inexistente."},null,null,null,null,null,null,null,null,"Solução 1 - Sensibilizar os trabalhadores para a importância do uso dos EPI.\nSolução 2 - Envolver os trabalhadores na seleção dos EPI.\nSolução 3 - Dar formação e informação aos trabalhadores sobre os riscos a que estão expostos e sobre as medidas de proteção adequadas a cada posto de trabalho.\nSolução 4 - Utilizar os EPI fornecidos, sempre que sejam necessários."]
[]
[]
[]
[]
[]
[]
["Produtos Hortofrutícolas - Massas e Molhos"]
[]
[{"$f":"'Avaliação de Riscos'!A67","v":"9. RECIPIENTES SOB PRESSÃO"}]
[]
[{"$f":"'Avaliação de Riscos'!A69","v":"9.1"},{"$f":"'Avaliação de Riscos'!B69:G69","v":"As garrafas de gás estão armazenadas corretamente."}]
[{"$f":"IF('Avaliação de Riscos'!S69=1,'Relatório com Soluções'!J137,\"Risco controlado/Inexistente.\")","v":"Risco controlado/Inexistente."},null,null,null,null,null,null,null,null,"Solução 1 - Armazenar as garrafas de gás em local fresco, afastado de fontes de calor ou ignição:\n• Em local próprio, afastado de locais de armazenamento de produtos químicos perigosos, particularmente de produtos combustíveis e inflamáveis; \n• Estar afastado dos espaços de movimentação de materiais, veículos e pessoas;\n• As garrafas devem estar identificadas, quanto ao seu conteúdo, na ogiva (parte superior) conforme os requisitos normativos que constam da norma EN 1089-3, tendo gravadas a identificação do fabricante e a data da prova hidráulica.\nSolução 2 - Sinalizar a zonas de armazenamento de garrafas de gás:\n– Verificar se o local onde estão armazenadas as garrafas de gás está sinalizado.\nSolução 3 - Ventilar as cabinas de armazenamento das garrafas de gás.\n– Verificar se as cabinas possuem ventilação permanente, com aberturas ao nível superior e inferior da cabina."]
[{"$f":"'Avaliação de Riscos'!A70","v":"9.2"},{"$f":"'Avaliação de Riscos'!B70:G70","v":"As garrafas de gás são usadas em condições de segurança."}]
[{"$f":"IF('Avaliação de Riscos'!S70=1,'Relatório com Soluções'!J139,\"Risco controlado/Inexistente.\")","v":"Risco controlado/Inexistente."},null,null,null,null,null,null,null,null,"Solução - Realizar ações de formação e informação sobre os riscos associados à utilização de garrafas de gás e quais as situações de segurança que devem ser cumpridas."]
[]
[{"$f":"'Avaliação de Riscos'!A78","v":"10. RECEÇÃO E ARMAZENAMENTO DE MATÉRIAS PRIMAS - ESTANTES E PRATELEIRAS"}]
[]
[{"$f":"'Avaliação de Riscos'!A80","v":"10.1"},{"$f":"'Avaliação de Riscos'!B80:G80","v":"As estruturas de armazenagem (pilares/estantes/prateleiras) são adequadas à carga a armazenar."}]
[{"$f":"IF('Avaliação de Riscos'!S80=1,'Relatório com Soluções'!J144,\"Risco controlado/Inexistente.\")","v":"Risco controlado/Inexistente."},null,null,null,null,null,null,null,null,"Solução - Garantir a adequação das estruturas de armazenagem (pilares/estantes/prateleiras) à carga a armazenar:\n– Na aquisição de estruturas de armazenagem (estantes/prateleiras), ter em atenção as características das mesmas, principalmente em termos de peso suportado e dimensões, para que a armazenagem possa ser efetuada de forma segura;\n– Assegurar a indicação da carga máxima em cada estrutura de armazenagem (estantes/prateleiras);\n– Garantir a resistência do pavimento sobre o qual assentam os pilares da estrutura de armazenagem. Pode ser necessário colocar bases de pilar de maior dimensão, de forma a reduzir a pressão no pavimento;\n– Nas estruturas que são fixadas à parede, deve ser assegurada a resistência dessa parede."]
[{"$f":"'Avaliação de Riscos'!A81","v":"10.2"},{"$f":"'Avaliação de Riscos'!B81:G81","v":"Os trabalhos efetuados sobre escadas/escadotes realizam-se em condições de segurança."}]
[{"$f":"IF('Avaliação de Riscos'!S81=1,'Relatório com Soluções'!J146,\"Risco controlado/Inexistente.\")","v":"Risco controlado/Inexistente."},null,null,null,null,null,null,null,null,"Solução 1 - Limitar a utilização de escadas ou escadotes:\n– Limitar a utilização de escadas ou escadotes a trabalhos de curta duração e alturas não muito elevadas;\n– Se possível, instalar meios de acesso mais seguros a locais elevados, nomeadamente escadas com guarda-corpos e largura suficiente.\nSolução 2 - Assegurar condições de utilização seguras das escadas de mão e escadotes:\n– Assegurar permanentemente manutenção às escadas de mão e escadotes, de forma a que estes equipamentos de trabalho possibilitem sempre condições de utilização seguras.\nSolução 3 - Informar os trabalhadores acerca dos riscos associados à utilização de escadas de mão e escadotes e da forma mais segura de utilizar esses equipamentos:\n– Informar os trabalhadores acerca dos riscos associados à utilização de escadas de mão e escadotes e da forma mais segura de utilizar esses equipamentos;\n– Dar instruções claras aos trabalhadores, relativamente à forma segura de desenvolver o trabalho, devendo ser utilizados procedimentos de trabalho seguro."]
[]
[]
[]
[]
["Produtos Hortofrutícolas - Massas e Molhos"]
[]
[{"$f":"'Avaliação de Riscos'!A82","v":"10.3"},{"$f":"'Avaliação de Riscos'!B82:G82","v":"Os trabalhadores possuem informação e formação acerca das posturas corretas para levantar e movimentar cargas."}]
[{"$f":"IF('Avaliação de Riscos'!S82=1,'Relatório com Soluções'!J154,\"Risco controlado/Inexistente.\")","v":"Risco controlado/Inexistente."},null,null,null,null,null,null,null,null,"Solução – Informar os trabalhadores acerca dos riscos associados à movimentaçãoo manual de cargas. Dar instruções claras aos trabalhadores, relativamente às posturas corretas para levantar e movimentar cargas."]
[]
[{"$f":"'Avaliação de Riscos'!A84","v":"11. RECEÇÃO E ARMAZENAMENTO DE MATÉRIAS PRIMAS - CÂMARAS DE FRIO"}]
[]
[{"$f":"'Avaliação de Riscos'!A86","v":"11.1"},{"$f":"'Avaliação de Riscos'!B86:G86","v":"A duração da exposição nas câmaras de conservação (frio positivo e/ou negativo) é limitada na medida do possível."}]
[{"$f":"IF('Avaliação de Riscos'!S86=1,'Relatório com Soluções'!J159,\"Risco controlado/Inexistente.\")","v":"Risco controlado/Inexistente."},null,null,null,null,null,null,null,null,"Solução - Garantir que a duração da exposição nas câmaras de conservação (frio positivo e/ou negativo) é limitada na medida do possível:\n– Organizar o trabalho de forma a reduzir ao mínimo o tempo de exposição do trabalhador no interior das câmaras de conservação."]
[{"$f":"'Avaliação de Riscos'!A87","v":"11.2"},{"$f":"'Avaliação de Riscos'!B87:G87","v":"Quando trabalham nas câmaras de conservação (frio positivo e/ou negativo), os trabalhadores têm ao seu dispor coletes de proteção contra o frio."}]
[{"$f":"IF('Avaliação de Riscos'!S87=1,'Relatório com Soluções'!J161,\"Risco controlado/Inexistente.\")","v":"Risco controlado/Inexistente."},null,null,null,null,null,null,null,null,"Solução 1 - Garantir a existência de coletes de proteção contra o frio.\nSolução 2 - Utilizar os coletes de proteção contra o frio."]
[{"$f":"'Avaliação de Riscos'!A88","v":"11.3"},{"$f":"'Avaliação de Riscos'!B88:G88","v":"As portas das câmaras de conservação (frio positivo e/ou negativo) dispõem de abertura fácil pelo exterior e pelo interior."}]
[{"$f":"IF('Avaliação de Riscos'!S88=1,'Relatório com Soluções'!J163,\"Risco controlado/Inexistente.\")","v":"Risco controlado/Inexistente."},null,null,null,null,null,null,null,null,"Solução - Garantir a existência de um sistema de abertura da porta das câmaras de conservação, por ambos os lados:\n– Verificar se as portas das câmaras de conservação de alimentos são passíveis de serem abertas de ambos os lados das câmaras;\n– Sempre que não exista possibilidade de abertura das portas por ambos os lados é necessário proceder à alteração das mesmas."]
[]
[]
[]
[]
[]
["Produtos Hortofrutícolas - Massas e Molhos"]
[]
[{"$f":"'Avaliação de Riscos'!A90","v":"12. PREPARAÇÃO DOS INGREDIENTES"}]
[]
[{"$f":"'Avaliação de Riscos'!A92","v":"12.1"},{"$f":"'Avaliação de Riscos'!B92:G92","v":"O piso da área de fabrico é mantido limpo e seco."}]
[{"$f":"IF('Avaliação de Riscos'!S92=1,'Relatório com Soluções'!J174,\"Risco controlado/Inexistente.\")","v":"Risco controlado/Inexistente."},null,null,null,null,null,null,null,null,"Solução 1 - Para reduzir o risco de queda de trabalhadores, deve-se garantir que o piso da área de fabrico é mantido limpo e seco, sendo importante assegurar que:\n- Existem locais apropriados para depositar os diferentes resíduos;\n- Os desperdícios/resíduos são depositados nos locais próprios;\n- As zonas de trabalho encontram-se livres de obstáculos;\n- Os derramamentos são evitados e que, em caso de ocorrer um derramamento, o mesmo seja prontamente limpo;\n- Não use papelão para absorver derrames;\n- Use métodos de limpeza que não vão espalhar o problema. Muitas vezes, para lidar com pequenos derrames, é melhor recorrer ao uso de uma toalha de papel em vez de uma esfregona que molha o chão; \n- Adequar a hora de realizar a limpeza de modo a que as pessoas não sejam colocadas em risco e a higiene dos alimentos não seja comprometida;\n- Após a limpeza, o piso deve secar bem e, enquanto não estiver seco, o sinal de perigo - piso escorregadio, seja colocado;\n- Não correr na área de trabalho.\nSolução 2 - Fornecer equipamento de proteção individual:\n– Selecionar calçado de segurança adequado (com sola antiderrapante, resistente à penetração da água), que reduz o risco de queda;\n– Fornecer os EPI aos trabalhadores."]
[{"$f":"'Avaliação de Riscos'!A93","v":"12.2"},{"$f":"'Avaliação de Riscos'!B93:G93","v":"A altura dos planos de trabalho é adequada aos trabalhadores."}]
[{"$f":"IF('Avaliação de Riscos'!S93=1,'Relatório com Soluções'!J176,\"Risco controlado/Inexistente.\")","v":"Risco controlado/Inexistente."},null,null,null,null,null,null,null,null,"Solução – Adequar a altura dos planos de trabalho, através da redução da sua altura ou, eventualmente através da criação de patamar adequado."]
[{"$f":"'Avaliação de Riscos'!A94","v":"12.3"},{"$f":"'Avaliação de Riscos'!B94:G94","v":"As prateleiras, mesas, balcões e bancadas da área de preparação dos ingredientes são em material liso, resistente, lavável e impermeável."}]
[{"$f":"IF('Avaliação de Riscos'!S94=1,'Relatório com Soluções'!J178,\"Risco controlado/Inexistente.\")","v":"Risco controlado/Inexistente."},null,null,null,null,null,null,null,null,"Solução - Adequar o mobiliário da área de preparação dos ingredientes aos requisitos legais, nomeadamente o facto das mesas, balcões e bancadas serem em material liso, resistente, lavável e impermeável."]
[{"$f":"'Avaliação de Riscos'!A95","v":"12.4"},{"$f":"'Avaliação de Riscos'!B95:G95","v":"Existe espaço suficiente na área de preparação dos ingredientes, de forma a que os trabalhadores possam desenvolver o seu trabalho sem risco."}]
[{"$f":"IF('Avaliação de Riscos'!S95=1,'Relatório com Soluções'!J180,\"Risco controlado/Inexistente.\")","v":"Risco controlado/Inexistente."},null,null,null,null,null,null,null,null,"Solução - Reorganizar a disposição dos equipamentos e espaços de trabalho na área de preparação dos ingredientes:\n– Analisar a situação atual, implicando os trabalhadores;\n– Em conjunto com os trabalhadores, estudar as várias soluções e escolher a melhor;\n– Reorganizar a disposição dos equipamentos e espaços de trabalho na área de preparação dos ingredientes, de forma a que os trabalhadores possam desenvolver o seu trabalho sem risco."]
[{"$f":"'Avaliação de Riscos'!A96","v":"12.5"},{"$f":"'Avaliação de Riscos'!B96:G96","v":"Os trabalhadores têm conhecimento dos riscos existentes ao utilizarem ferramentas cortantes, nas operações de preparação dos ingredientes, bem como das regras para o seu uso seguro."}]
[{"$f":"IF('Avaliação de Riscos'!S96=1,'Relatório com Soluções'!J182,\"Risco controlado/Inexistente.\")","v":"Risco controlado/Inexistente."},null,null,null,null,null,null,null,null,"Solução - Dar formação/informação:\nInformar os trabalhadores acerca dos riscos e das regras de utilização segura das ferramentas de corte, tais como:\n• Manter sempre os dedos afastados da zona de corte da ferramenta;\n• Não devem segurar facas enquanto transportam outros objetos;\n• Cada ferramenta deve ser usada apenas para a finalidade com que foi construída;\n• O trabalhador não deve ser distraído, nem distrair-se enquanto utiliza ferramentas manuais de corte;\n• Utilizar luvas anti corte sempre que necessário;\n• Após terminar a utilização das facas de trabalho, estas devem ser colocadas no espaço próprio."]
[]
[]
[]
[]
[]
["Produtos Hortofrutícolas - Massas e Molhos"]
[]
[{"$f":"'Avaliação de Riscos'!A97","v":"12.6"},{"$f":"'Avaliação de Riscos'!B97:G97","v":"As operações de corte são efetuadas em superfícies estáveis."}]
[{"$f":"IF('Avaliação de Riscos'!S97=1,'Relatório com Soluções'!J191,\"Risco controlado/Inexistente.\")","v":"Risco controlado/Inexistente."},null,null,null,null,null,null,null,null,"Solução - Realizar as operações de corte, apenas em superfícies estáveis:\n– Garantir que sejam proporcionadas superfícies estáveis para se efetuarem as operações de corte;\n– Informar os trabalhadores para que estes utilizem estas superfícies estáveis, sempre que efetuarem operações de corte."]
[]
[{"$f":"'Avaliação de Riscos'!A99","v":"13.  CONFEÇÃO DAS MASSAS E MOLHOS"}]
[]
[{"$f":"'Avaliação de Riscos'!A101","v":"13.1"},{"$f":"'Avaliação de Riscos'!B101:G101","v":"Os recipientes/equipamentos onde são confecionados os molhos possuem tampas/sistemas de fecho adequados."}]
[{"$f":"IF('Avaliação de Riscos'!S101=1,'Relatório com Soluções'!J196,\"Risco controlado/Inexistente.\")","v":"Risco controlado/Inexistente."},null,null,null,null,null,null,null,null,"Solução 1 - Assegurar que todos os recipientes/equipamentos que contenham molhos quentes possuem tampas/sistemas de fecho adequados:\n– Identificar quais os recipientes/equipamentos que possam ser utilizados para conter líquidos quentes, que não possuem tampas/sistemas de fecho adequados;\n– Adquirir tampas/sistemas de fecho adequados para os recipientes/equipamentos identificados ou proceder à aquisição de outros recipientes/equipamentos que contenham tampa/sistema de fecho adequados.\nSolução 2 - Assegurar que todos os recipientes ou equipamentos que contenham molhos quentes tenham as tampas colocadas ou os sistemas de fecho ativos:\n– Dar instruções aos trabalhadores para que antes e após a utilização, todos os recipientes ou equipamentos que contenham molhos quentes tenham as tampas colocadas ou os sistemas de fecho ativos."]
[{"$f":"'Avaliação de Riscos'!A102","v":"13.2"},{"$f":"'Avaliação de Riscos'!B102:G102","v":"Os recipientes que contêm os molhos ainda quentes são transportados com segurança."}]
[{"$f":"IF('Avaliação de Riscos'!S102=1,'Relatório com Soluções'!J198,\"Risco controlado/Inexistente.\")","v":"Risco controlado/Inexistente."},null,null,null,null,null,null,null,null,"Solução - Assegurar que todos os recipientes que contenham molhos quentes são transportados com segurança:\n– Analisar as diferentes opções de transporte para recipientes contendo molhos quentes, principalmente os recipientes pesados;\n– Adquirir o transporte mais adequado, como os carrinhos de transporte. Estes carrinhos devem ter pegas para empurrar e estas terem uma altura suficiente para que os trabalhadores não se tenham que curvar excessivamente para chegar ao recipiente. O transporte de recipientes pesados em carrinhos evita ainda os esforços excessivos que poderiam ser necessários no caso do transporte da carga ser totalmente manual."]
[{"$f":"'Avaliação de Riscos'!A103","v":"13.3"},{"$f":"'Avaliação de Riscos'!B103:G103","v":"Os trabalhadores usam equipamento de proteção em contato com materiais ou superfícies quentes."}]
[{"$f":"IF('Avaliação de Riscos'!S103=1,'Relatório com Soluções'!J200,\"Risco controlado/Inexistente.\")","v":"Risco controlado/Inexistente."},null,null,null,null,null,null,null,null,"Solução 1 - Assegurar o fornecimento dos equipamentos de proteção individual adequados a operações em que possa existir contato com materiais ou superfícies quentes, nomeadamente as luvas de segurança térmica e os aventais.\nSolução 2 - Assegurar que os trabalhadores efetivamente usem os equipamentos de proteção individual. Para tal será importante:\n• Dar formação/informação aos trabalhadores;\n• Monitorizar a utilização dos EPI."]
[{"$f":"'Avaliação de Riscos'!A104","v":"13.4"},{"$f":"'Avaliação de Riscos'!B104:G104","v":"A ventilação da área onde se confecionam os molhos é a adequada."}]
[{"$f":"IF('Avaliação de Riscos'!S104=1,'Relatório com Soluções'!J202,\"Risco controlado/Inexistente.\")","v":"Risco controlado/Inexistente."},null,null,null,null,null,null,null,null,"Solução - Garantir uma adequada ventilação da área onde se confecionam a gás os molhos.\nPara uma boa evacuação dos fumos e gases, a instalação de extração e filtragem de gases e fumos deve ser concebida de acordo com a legislação existente, sendo muito importante que:\n• A campânula/tremonha deste sistema de extração seja localizado acima da placa de fogão e ter uma dimensão suficiente para cobrir toda a superfície da placa de cozinhar;\n• O sistema de ventilação possua uma electroválvula que corta o gás quando exista acumulação de gases ou fumos ou exista um sistema que altere automaticamente a velocidade de extração do sistema de ventilação, para evitar a acumulação de gases ou fumos;\n• Se assegure uma boa ventilação da área onde se confecionam a gás os molhos, através da remoção de fumos e gases produzidos, mas também que se garanta um suprimento de ar fresco."]
[]
[]
[]
[]
[]
["Produtos Hortofrutícolas - Massas e Molhos"]
[]
[{"$f":"'Avaliação de Riscos'!A111","v":"14. EMBALAMENTO PRIMÁRIO"}]
[]
[{"$f":"'Avaliação de Riscos'!A113","v":"14.1"},{"$f":"'Avaliação de Riscos'!B113:G113","v":"A altura dos planos de trabalho é adequada aos trabalhadores."}]
[{"$f":"IF('Avaliação de Riscos'!S113=1,'Relatório com Soluções'!J213,\"Risco controlado/Inexistente.\")","v":"Risco controlado/Inexistente."},null,null,null,null,null,null,null,null,"Solução - Adequar a altura dos planos de trabalho, através da redução da sua altura ou, eventualmente através da criação de patamar adequado."]
[{"$f":"'Avaliação de Riscos'!A114","v":"14.2"},{"$f":"'Avaliação de Riscos'!B114:G114","v":"Os recipientes que contenham os molhos ainda quentes são transportados com segurança para a área de enchimento manual das embalagens."}]
[{"$f":"IF('Avaliação de Riscos'!S114=1,'Relatório com Soluções'!J215,\"Risco controlado/Inexistente.\")","v":"Risco controlado/Inexistente."},null,null,null,null,null,null,null,null,"Solução - Assegurar que todos os recipientes que contenham líquidos são transportados com segurança:\n– Analisar as diferentes opções de transporte para recipientes contendo líquidos, principalmente os recipientes pesados;\n– Adquirir o transporte mais adequado, como os carrinhos de transporte. Estes carrinhos devem ter pegas para empurrar e estas terem uma altura suficiente para que os trabalhadores não se tenham que curvar excessivamente para chegar ao recipiente. O transporte de recipientes pesados em carrinhos evita ainda os esforços excessivos que poderiam ser necessários no caso do transporte da carga ser totalmente manual."]
[{"$f":"'Avaliação de Riscos'!A115","v":"14.3"},{"$f":"'Avaliação de Riscos'!B115:G115","v":"No enchimento das embalagens são adotados procedimentos seguros para evitar queimaduras devido ao contacto com vapores, líquidos e superfícies quentes."}]
[{"$f":"IF('Avaliação de Riscos'!S115=1,'Relatório com Soluções'!J217,\"Risco controlado/Inexistente.\")","v":"Risco controlado/Inexistente."},null,null,null,null,null,null,null,null,"Solução 1 - Garantir que os trabalhadores tem informaçãoo adequada sobre o risco de queimadura térmica:\n– Dar informação adequada aos trabalhadores, sobre o risco de queimadura térmica e as medidas de controlo do mesmo.\nSolução 2 - Fornecer EPI’s de proteção térmica adequados:\n– Fornecer EPI’s adequados, nomeadamente: luvas de proteção térmica e vestuário protetor."]
[{"$f":"'Avaliação de Riscos'!A116","v":"14.4"},{"$f":"'Avaliação de Riscos'!B116:G116","v":"A movimentação das massas e molhos embalados é efetuada sem risco para os trabalhadores."}]
[{"$f":"IF('Avaliação de Riscos'!S116=1,'Relatório com Soluções'!J219,\"Risco controlado/Inexistente.\")","v":"Risco controlado/Inexistente."},null,null,null,null,null,null,null,null,"Solução - Assegurar condições para evitar sobre esforços dos trabalhadores na movimentação manual de cargas:\n– Gerir a movimentação de produtos, tendo em conta o peso máximo admissível para a movimentação manual ser efetuada de forma segura por uma só pessoa;\n– Estabelecer o limite de 30 kg para a carga máxima movimentada individualmente por cada trabalhador. Desta forma serão prevenidas a ocorrência de lesões dorso-lombares;\n– Incentivar a entreajuda entre os trabalhadores, de forma a que os materiais mais pesados sejam movimentados por mais que 1 trabalhador;\n– Analisar a possibilidade de adquirir sistemas mecânicos auxiliares à movimentação de cargas."]
[]
[{"$f":"'Avaliação de Riscos'!A118","v":"15. EMBALAMENTO SECUNDÁRIO"}]
[]
[{"$f":"'Avaliação de Riscos'!A120","v":"15.1"},{"$f":"'Avaliação de Riscos'!B120:G120","v":"A altura dos planos de trabalho é adequada aos trabalhadores. "}]
[{"$f":"IF('Avaliação de Riscos'!S120=1,'Relatório com Soluções'!J224,\"Risco controlado/Inexistente.\")","v":"Risco controlado/Inexistente."},null,null,null,null,null,null,null,null,"Solução - Adequar a altura dos planos de trabalho, através da redução da sua altura ou, eventualmente através da criação de patamar adequado."]
[{"$f":"'Avaliação de Riscos'!A121","v":"15.2"},{"$f":"'Avaliação de Riscos'!B121:G121","v":"As máquinas existentes têm acesso fácil. "}]
[{"$f":"IF('Avaliação de Riscos'!S121=1,'Relatório com Soluções'!J226,\"Risco controlado/Inexistente.\")","v":"Risco controlado/Inexistente."},null,null,null,null,null,null,null,null,"Solução - Adaptar a altura da máquina, de forma a reduzir os esforços físicos associados à sua utilização:\n– Analisar a situação atual, implicando os trabalhadores;\n– Em conjunto com os trabalhadores, estudar a melhor posição para a máquina em questão;\n– Adaptar a altura da máquina, de tal forma que permita que as zonas de carregamento/descarregamento se situem a uma altura entre a cintura e a altura do cotovelo. Desta forma são eliminadas ou minimizadas posturas penosas para o trabalhador."]
[]
[]
[]
[]
[]
["Produtos Hortofrutícolas - Massas e Molhos"]
[]
[{"$f":"'Avaliação de Riscos'!A123","v":"16. ARMAZENAMENTO DE PRODUTO ACABADO"}]
[]
[{"$f":"'Avaliação de Riscos'!A125","v":"16.1"},{"$f":"'Avaliação de Riscos'!B125:G125","v":"As estruturas de armazenagem (pilares/estantes/prateleiras) são adequadas à carga a armazenar."}]
[{"$f":"IF('Avaliação de Riscos'!S125=1,'Relatório com Soluções'!J237,\"Risco controlado/Inexistente.\")","v":"Risco controlado/Inexistente."},null,null,null,null,null,null,null,null,"Solução - Garantir a adequação das estruturas de armazenagem (pilares/estantes/prateleiras) à carga a armazenar:\n– Na aquisição de estruturas de armazenagem (estantes/prateleiras), ter em atenção as características das mesmas, principalmente em termos de peso suportado e dimensões, para que a armazenagem possa ser efetuada de forma segura;\n– Assegurar a indicação da carga máxima em cada estrutura de armazenagem (estantes/prateleiras);\n– Garantir a resistência do pavimento sobre o qual assentam os pilares da estrutura de armazenagem. Pode ser necessário colocar bases de pilar de maior dimensão, de forma a reduzir a pressão no pavimento;\n– Nas estruturas que são fixadas à parede, deve ser assegurada a resistência dessa parede."]
[{"$f":"'Avaliação de Riscos'!A126","v":"16.2"},{"$f":"'Avaliação de Riscos'!B126:G126","v":"Os trabalhos efetuados sobre escadas/escadotes realizam-se em condições de segurança."}]
[{"$f":"IF('Avaliação de Riscos'!S126=1,'Relatório com Soluções'!J239,\"Risco controlado/Inexistente.\")","v":"Risco controlado/Inexistente."},null,null,null,null,null,null,null,null,"Solução 1 - Limitar a utilização de escadas ou escadotes:\n– Limitar a utilização de escadas ou escadotes a trabalhos de curta duração e alturas não muito elevadas;\n– Se possível, instalar meios de acesso mais seguros a locais elevados, nomeadamente escadas com guarda-corpos e largura suficiente.\nSolução 2 - Assegurar condições de utilização seguras das escadas de mão e escadotes:\n– Assegurar permanentemente manutenção às escadas de mão e escadotes, de forma a que estes equipamentos de trabalho possibilitem sempre condições de utilização seguras.\nSolução 3 - Informar os trabalhadores acerca dos riscos associados à utilização de escadas de mão e escadotes e da forma mais segura de utilizar esses equipamentos:\n– Informar os trabalhadores acerca dos riscos associados à utilização de escadas de mão e escadotes e da forma mais segura de utilizar esses equipamentos;\n– Dar instruções claras aos trabalhadores, relativamente à forma segura de desenvolver o trabalho, devendo ser utilizados procedimentos de trabalho seguro."]
[{"$f":"'Avaliação de Riscos'!A127","v":"16.3"},{"$f":"'Avaliação de Riscos'!B127:G127","v":"Os trabalhadores possuem informação e formação acerca das posturas corretas para levantar e movimentar cargas."}]
[{"$f":"IF('Avaliação de Riscos'!S127=1,'Relatório com Soluções'!J241,\"Risco controlado/Inexistente.\")","v":"Risco controlado/Inexistente."},null,null,null,null,null,null,null,null,"Solução - Informar os trabalhadores acerca dos riscos associados à movimentação manual de cargas:\n– Informar os trabalhadores acerca dos riscos associados à movimentaçãoo manual de cargas;\n– Dar instruções claras aos trabalhadores, relativamente às posturas corretas para levantar e movimentar cargas."]
[]
[]
[]
[]
[]
[]
["Produtos Hortofrutícolas - Massas e Molhos"]
[]
[{"$f":"'Avaliação de Riscos'!A129","v":"17. EMERGÊNCIAS"}]
[]
[{"$f":"'Avaliação de Riscos'!A131","v":"17.1"},{"$f":"'Avaliação de Riscos'!B131:G131","v":"Existe um plano de ação ou instruções para fazer face às situações de emergência."}]
[{"$f":"IF('Avaliação de Riscos'!S131=1,'Relatório com Soluções'!J253,\"Risco controlado/Inexistente.\")","v":"Risco controlado/Inexistente."},null,null,null,null,null,null,null,null,"Solução 1 - Elaborar um plano de ação para eliminar ou minimizar as situações de emergência.\nSolução 2 - Dar formação aos trabalhadores sobre as ações que devem tomar perante uma situação de emergência."]
[{"$f":"'Avaliação de Riscos'!A132","v":"17.2"},{"$f":"'Avaliação de Riscos'!B132:G132","v":"Está definida uma estrutura para fazer face às emergências na empresa."}]
[{"$f":"IF('Avaliação de Riscos'!S132=1,'Relatório com Soluções'!J255,\"Risco controlado/Inexistente.\")","v":"Risco controlado/Inexistente."},null,null,null,null,null,null,null,null,"Solução 1 - Definição da equipa de intervenção em emergências e as responsabilidades.\nSolução 2 - Formação e informação periódica aos trabalhadores sobre atuação em situações de emergência."]
[{"$f":"'Avaliação de Riscos'!A133","v":"17.3"},{"$f":"'Avaliação de Riscos'!B133:G133","v":"As saídas de emergência estão sinalizadas, desobstruídas e são de fácil acesso para o exterior."}]
[{"$f":"IF('Avaliação de Riscos'!S133=1,'Relatório com Soluções'!J257,\"Risco controlado/Inexistente.\")","v":"Risco controlado/Inexistente."},null,null,null,null,null,null,null,null,"Solução 1 - Periodicamente verificar se as saídas de emergência estão desobstruídas. Deve-se desobstruir as mesmas sempre que necessário.\nSolução 2 - Sinalizar corretamente as saídas de emergência."]
[{"$f":"'Avaliação de Riscos'!A134","v":"17.4"},{"$f":"'Avaliação de Riscos'!B134:G134","v":"Foram realizadas ações de formação sobre segurança contra incêndios, explosões e primeiros socorros."}]
[{"$f":"IF('Avaliação de Riscos'!S134=1,'Relatório com Soluções'!J259,\"Risco controlado/Inexistente.\")","v":"Risco controlado/Inexistente."},null,null,null,null,null,null,null,null,"Solução - Efetuar ações de formação e informação teórico-práticas sobre as formas de atuação perante as várias situações de emergência que podem ocorrer na empresa (incêndios, explosões e primeiros socorros, por exemplo)."]
[{"$f":"'Avaliação de Riscos'!A135","v":"17.5"},{"$f":"'Avaliação de Riscos'!B135:G135","v":"São organizados periodicamente simulacros de evacuação."}]
[{"$f":"IF('Avaliação de Riscos'!S135=1,'Relatório com Soluções'!J261,\"Risco controlado/Inexistente.\")","v":"Risco controlado/Inexistente."},null,null,null,null,null,null,null,null,"Solução 1 - Dar formação e informação de como atuar em caso de emergência a todos os trabalhadores, para posteriormente realizar simulacros com periodicidade mínima anual para empresas do Tipo XII da 4º categoria e de 2 em 2 anos para empresas da 2ª e 3ª categoria.\nSolução 2 - Efetuar o registo de todos os simulacros realizados."]
[{"$f":"'Avaliação de Riscos'!A136","v":"17.6"},{"$f":"'Avaliação de Riscos'!B136:G136","v":"Existem extintores em número suficiente e são adequados às classes de fogo existentes."}]
[{"$f":"IF('Avaliação de Riscos'!S136=1,'Relatório com Soluções'!J263,\"Risco controlado/Inexistente.\")","v":"Risco controlado/Inexistente."},null,null,null,null,null,null,null,null,"Solução 1 - Verificar se os extintores são em número suficiente. Caso seja insuficiente adquirir e instalar os extintores em falta.\n– Para esta verificação, deve ter em atenção que o Regulamento sobre Segurança contra Incêndios em Edifícios, indica que os extintores devem ser calculados à razão de:\na) 18 litros de agente extintor padrão por 500 m2 ou fração de área de pavimento do piso em que se situem. Podem ser utilizadas as equivalências que constam na Regra Técnica n.º2 do Instituto de Seguros de Portugal, nomeadamente:\ni) 1 kg de pó químico é equivalente a 2 litros de agente extintor padrão (água);\nii) 1 kg de dióxido de carbono (CO2) é equivalente a 1,34 L de agente extintor padrão;\niii) As espumas são equivalentes ao produto extintor-padrão. \nb) Um por cada 200 m2 de pavimento do piso ou fração, com um mínimo de dois por piso.\n– Esse Regulamento indica ainda que os extintores devem ser adequadamente distribuídos, de forma que a distância a percorrer de qualquer saída de um local de risco para os caminhos de evacuação até ao extintor mais próximo não exceda 15 metros.\nSolução 2 - Verificar se os extintores são adequados às classes de fogo existentes na empresa:\n– Verificar se todos os extintores são homologados (obrigatório constar no rótulo/etiquetagem);\n–  Substituir todos os extintores inadequados por outros adequados."]
[]
[]
[]
[]
[]
["Produtos Hortofrutícolas - Massas e Molhos"]
[]
[{"$f":"'Avaliação de Riscos'!A137","v":"17.7"},{"$f":"'Avaliação de Riscos'!B137:G137","v":"A iluminação de emergência está instalada em toda a empresa e é inspecionada pelo menos uma vez por ano."}]
[{"$f":"IF('Avaliação de Riscos'!S137=1,'Relatório com Soluções'!J272,\"Risco controlado/Inexistente.\")","v":"Risco controlado/Inexistente."},null,null,null,null,null,null,null,null,"Solução 1 - Efetuar, no mínimo, a inspeção anual a toda a iluminação de emergência.\nSolução 2 - Efetuar o registo de todas as intervenções efetuadas à iluminação de emergência."]
[{"$f":"'Avaliação de Riscos'!A138","v":"17.8"},{"$f":"'Avaliação de Riscos'!B138:G138","v":"Existe caixa de primeiros socorros com fácil acesso em caso de emergência."}]
[{"$f":"IF('Avaliação de Riscos'!S138=1,'Relatório com Soluções'!J274,\"Risco controlado/Inexistente.\")","v":"Risco controlado/Inexistente."},null,null,null,null,null,null,null,null,"Solução 1 - Garantir a existência de caixa de primeiros socorros:\n• Conhecida pela maioria dos trabalhadores e estar devidamente sinalizada e em local acessível;\n• Com o conteúdo adequado aos cuidados de primeiros socorros que eventualmente se revelem necessários, devendo o mesmo estar devidamente listado e ser revisto periodicamente, com especial atenção para as datas de validade de alguns componentes;\n• Que os locais de trabalho disponham de uma manta térmica e de um saco térmico para gelo.\nSolução 2 - Garantir a existência de procedimentos escritos relativos à atuação a prestar nas situações de acidente mais comuns:\n– Elaborar procedimentos escritos relativos à atuação a prestar nas situações de acidente mais comuns;\n– Colocar os procedimentos escritos relativos à atuação a prestar nas situações de acidente mais comuns, junto da mala/caixa/armário de primeiros socorros."]